Organisation Name (A),Department (B),Service Cat Label (C ),Purpose of Spend (D),Expenditure CIPFA Sub Group (E),Supplier (F),Supplier Reference (G),Pay Date (H),Transaction Number (I),Net Amount (J),Grant to VCSE? (K),Charity Number (L),Card Transaction (M),Irrecoverable VAT (N)
Pendle Borough Council,Human Resources,Indirect Employee Expenses,Recruitment,1221,INSTITUTE OF CIVIL ENGINEERS,A0000034,10/08/2023,PER0335781,999,N,,N,N
Pendle Borough Council,Operational Services,Transport Related Expense,Tprt : Repairs : General,3105,BALMERS GM LIMITED,A0000198,10/08/2023,PCO4006724,-96.08,N,,N,N
Pendle Borough Council,Operational Services,Transport Related Expense,Tprt : Repairs : General,3105,BALMERS GM LIMITED,A0000198,31/08/2023,OPS0336184,24.46,N,,N,N
Pendle Borough Council,Operational Services,Transport Related Expense,Tprt : Repairs : General,3105,BALMERS GM LIMITED,A0000198,10/08/2023,PCO0334815,85.76,N,,N,N
Pendle Borough Council,Operational Services,Transport Related Expense,Tprt : Repairs : General,3105,BALMERS GM LIMITED,A0000198,10/08/2023,OPS0335755,199.37,N,,N,N
Pendle Borough Council,Operational Services,Premises Related Expense,Grounds : R & M : Day to Day : Routine,2101,BARNES JB LIMITED,A0000202,10/08/2023,OPS0335766,50.65,N,,N,N
Pendle Borough Council,Operational Services,Premises Related Expense,Grounds : R & M : Day to Day : Routine,2101,BARNES JB LIMITED,A0000202,24/08/2023,OPS0336054,33.45,N,,N,N
Pendle Borough Council,Operational Services,Premises Related Expense,Grounds : R & M : Day to Day : Routine,2101,BARNES JB LIMITED,A0000202,24/08/2023,OPS0336053,20,N,,N,N
Pendle Borough Council,Operational Services,Premises Related Expense,Grounds : R & M : Day to Day : Routine,2101,BARNES JB LIMITED,A0000202,24/08/2023,OPS0336052,45.16,N,,N,N
Pendle Borough Council,Operational Services,Transport Related Expense,Tprt : Repairs : General,3105,BARNES JB LIMITED,A0000202,10/08/2023,OPS0335759,26.63,N,,N,N
Pendle Borough Council,Operational Services,Transport Related Expense,Tprt : Repairs : General,3105,BARNES JB LIMITED,A0000202,10/08/2023,OPS0335758,31.68,N,,N,N
Pendle Borough Council,Operational Services,Premises Related Expense,Grounds : R & M : Day to Day : Routine,2101,BROXAP LIMITED,A0000236,24/08/2023,OPS0336055,926.85,N,,N,N
Pendle Borough Council,Operational Services,Premises Related Expense,Grounds : R & M : Day to Day : Routine,2101,BROXAP LIMITED,A0000236,24/08/2023,OPS0336055,617.9,N,,N,N
Pendle Borough Council,Operational Services,Supplies and Services,EFM : Other Equipment,4003,BROXAP LIMITED,A0000236,10/08/2023,OPS0335747,617.9,N,,N,N
Pendle Borough Council,Operational Services,Supplies and Services,Other Expenses,4705,BROXAP LIMITED,A0000236,10/08/2023,OPS0335747,1853.7,N,,N,N
Pendle Borough Council,Operational Services,Supplies and Services,Other Expenses,4705,BROXAP LIMITED,A0000236,24/08/2023,OPS0336055,987,N,,N,N
Pendle Borough Council,Operational Services,Capital Costs,Capital : Payments,CD14,BROXAP LIMITED,A0000236,24/08/2023,OPS0336055,2494,N,,N,N
Pendle Borough Council,"Planning, Building Control & Regulatory Services",Supplies and Services,Other Expenses,4705,BLACKBURN/DARWEN BOROUGH COUNCIL,A0000381,24/08/2023,PBC0336084,2430.25,N,,N,N
Pendle Borough Council,Operational Services,Transport Related Expense,Hire of Plant,3502,BOC GASES LTD,A0000386,10/08/2023,OPS0335779,25,N,,N,N
Pendle Borough Council,Operational Services,Transport Related Expense,Hire of Plant,3502,BOC GASES LTD,A0000386,10/08/2023,OPS0335762,25.95,N,,N,N
Pendle Borough Council,Operational Services,Transport Related Expense,Hire of Plant,3502,BOC GASES LTD,A0000386,10/08/2023,OPS0335778,25.95,N,,N,N
Pendle Borough Council,Economic Growth,Capital Costs,Capital : Payments,CD14,CB EXCAVATORS LTD,A0000396,17/08/2023,ECO0335868,25935,N,,N,N
Pendle Borough Council,Operational Services,Transport Related Expense,Tprt : Repairs : General,3105,BARROWFORD SAFE & LOCK SERV LT,A0000458,17/08/2023,OPS0335917,26.68,N,,N,N
Pendle Borough Council,Operational Services,Transport Related Expense,Tprt : Repairs : General,3105,BARROWFORD SAFE & LOCK SERV LT,A0000458,10/08/2023,OPS0335768,105.26,N,,N,N
Pendle Borough Council,Housing & Environmental Health,Premises Related Expense,Bldgs : R & M : Abnormal,2002,MARTIN COLLINS JOINERY & GLAZING,A0000623,24/08/2023,HEH0336031,72,N,,N,N
Pendle Borough Council,Housing & Environmental Health,Premises Related Expense,Bldgs : R & M : Abnormal,2002,MARTIN COLLINS JOINERY & GLAZING,A0000623,03/08/2023,HEH0335030,91.5,N,,N,N
Pendle Borough Council,"Planning, Building Control & Regulatory Services",Supplies and Services,Other Expenses,4705,MARTIN COLLINS JOINERY & GLAZING,A0000623,24/08/2023,PBC0336085,66,N,,N,N
Pendle Borough Council,Housing & Environmental Health,Transfer Payments,Storage & Homelessness prevention,6104,CAVALIER TAXIS,A0000638,17/08/2023,HEH0335914,75,N,,N,N
Pendle Borough Council,Housing & Environmental Health,Transfer Payments,Storage & Homelessness prevention,6104,CAVALIER TAXIS,A0000638,17/08/2023,HEH0335853,220,N,,N,N
Pendle Borough Council,Property Services,Premises Related Expense,Bldgs : R & M : Day To Day,2001,J DRIVER LTD,A0000884,24/08/2023,EST0336150,4145.95,N,,N,N
Pendle Borough Council,Property Services,Premises Related Expense,Bldgs : R & M : Day To Day,2001,J DRIVER LTD,A0000884,24/08/2023,EST0336126,168,N,,N,N
Pendle Borough Council,Property Services,Premises Related Expense,Bldgs : R & M : Day To Day,2001,J DRIVER LTD,A0000884,24/08/2023,EST0336126,672,N,,N,N
Pendle Borough Council,Property Services,Premises Related Expense,Bldgs : R & M : Day To Day,2001,J DRIVER LTD,A0000884,24/08/2023,EST0336126,1299.88,N,,N,N
Pendle Borough Council,Property Services,Premises Related Expense,Bldgs : R & M : Day To Day,2001,J DRIVER LTD,A0000884,24/08/2023,EST0336126,175,N,,N,N
Pendle Borough Council,Property Services,Premises Related Expense,Bldgs : R & M : Day To Day,2001,J DRIVER LTD,A0000884,24/08/2023,EST0336126,153.34,N,,N,N
Pendle Borough Council,Property Services,Premises Related Expense,Bldgs : R & M : Day To Day,2001,J DRIVER LTD,A0000884,24/08/2023,EST0336126,337.5,N,,N,N
Pendle Borough Council,Property Services,Premises Related Expense,Bldgs : R & M : Day To Day,2001,J DRIVER LTD,A0000884,24/08/2023,EST0336126,84,N,,N,N
Pendle Borough Council,Property Services,Capital Costs,Capital: Construction: Conversion/Refu,CD57,J DRIVER LTD,A0000884,03/08/2023,EST0335664,5000,N,,N,N
Pendle Borough Council,Operational Services,Supplies and Services,Protective Clothing,4201,ENGINEERING & FOUNDRY SUPPLIES,A0001002,17/08/2023,OPS0335918,26.72,N,,N,N
Pendle Borough Council,Operational Services,Supplies and Services,Protective Clothing,4201,ENGINEERING & FOUNDRY SUPPLIES,A0001002,17/08/2023,OPS0335903,64.8,N,,N,N
Pendle Borough Council,Operational Services,Supplies and Services,Protective Clothing,4201,ENGINEERING & FOUNDRY SUPPLIES,A0001002,10/08/2023,OPS0335757,187.45,N,,N,N
Pendle Borough Council,Operational Services,,Stock : Purchases,PJ01,ENGINEERING & FOUNDRY SUPPLIES,A0001002,17/08/2023,OPS0335883,66.33,N,,N,N
Pendle Borough Council,Operational Services,,Stock : Purchases,PJ01,ENGINEERING & FOUNDRY SUPPLIES,A0001002,31/08/2023,OPS0336166,92.95,N,,N,N
Pendle Borough Council,Operational Services,,Stock : Purchases,PJ01,ENGINEERING & FOUNDRY SUPPLIES,A0001002,17/08/2023,OPS0335884,126.72,N,,N,N
Pendle Borough Council,Operational Services,,Stock : Purchases,PJ01,ENGINEERING & FOUNDRY SUPPLIES,A0001002,17/08/2023,OPS0335888,126.72,N,,N,N
Pendle Borough Council,Operational Services,,Stock : Purchases,PJ01,ENGINEERING & FOUNDRY SUPPLIES,A0001002,17/08/2023,OPS0335885,132,N,,N,N
Pendle Borough Council,Operational Services,,Stock : Purchases,PJ01,ENGINEERING & FOUNDRY SUPPLIES,A0001002,17/08/2023,OPS0335882,137.28,N,,N,N
Pendle Borough Council,Operational Services,,Stock : Purchases,PJ01,ENGINEERING & FOUNDRY SUPPLIES,A0001002,03/08/2023,OPS0335637,166.4,N,,N,N
Pendle Borough Council,Operational Services,,Stock : Purchases,PJ01,ENGINEERING & FOUNDRY SUPPLIES,A0001002,03/08/2023,OPS0335638,371.54,N,,N,N
Pendle Borough Council,Operational Services,,Stock : Purchases,PJ01,ENGINEERING & FOUNDRY SUPPLIES,A0001002,17/08/2023,OPS0335886,540,N,,N,N
Pendle Borough Council,Operational Services,,Stock : Purchases,PJ01,ENGINEERING & FOUNDRY SUPPLIES,A0001002,24/08/2023,OPS0336079,606.03,N,,N,N
Pendle Borough Council,Policy & Commissioning,Supplies and Services,Consultants Fees,4401,EARBY & KELBROOK SR CITIZEN WELFARE,A0001024,24/08/2023,POL0335401,20,N,700210,N,N
Pendle Borough Council,Economic Growth,Supplies and Services,Grant Funding,4737,EASTLANCS CHAMBER OF COMMERCE,A0001036,03/08/2023,ECO0335604,11759.57,N,,N,N
Pendle Borough Council,Economic Growth,Supplies and Services,Grant Funding,4737,EASTLANCS CHAMBER OF COMMERCE,A0001036,03/08/2023,ECO0335603,40661.3,N,,N,N
Pendle Borough Council,Operational Services,Transport Related Expense,Tprt : Repairs : General,3105,FREIGHT TRANSPORT ASSOCIATION,A0001124,10/08/2023,OPS0335746,44,N,,N,N
Pendle Borough Council,Operational Services,Transport Related Expense,Tprt : Repairs : General,3105,GIBSONS GARDEN MACHINERY LTD,A0001201,31/08/2023,OPS0336179,34.4,N,,N,N
Pendle Borough Council,Operational Services,Transport Related Expense,Tprt : Repairs : General,3105,GIBSONS GARDEN MACHINERY LTD,A0001201,10/08/2023,OPS0335763,50.71,N,,N,N
Pendle Borough Council,Operational Services,Transport Related Expense,Tprt : Repairs : General,3105,GIBSONS GARDEN MACHINERY LTD,A0001201,17/08/2023,OPS0335924,409.68,N,,N,N
Pendle Borough Council,Operational Services,Transport Related Expense,Tprt : Repairs : General,3105,GIBSONS GARDEN MACHINERY LTD,A0001201,17/08/2023,OPS0335923,140.39,N,,N,N
Pendle Borough Council,Operational Services,Transport Related Expense,Tprt : Repairs : General,3105,GIBSONS GARDEN MACHINERY LTD,A0001201,31/08/2023,OPS0336186,366.02,N,,N,N
Pendle Borough Council,Operational Services,Supplies and Services,Telephones : Direct,4502,FGH GUARDHALL SECURITY LIMITED,A0001235,24/08/2023,OPS0336076,1035,N,,N,N
Pendle Borough Council,Operational Services,Premises Related Expense,Bldgs : R & M : Day To Day,2001,JEWSON LIMITED,A0001323,17/08/2023,OPS0335906,8.09,N,,N,N
Pendle Borough Council,Operational Services,Premises Related Expense,Bldgs : R & M : Day To Day,2001,JEWSON LIMITED,A0001323,17/08/2023,OPS0335907,21.11,N,,N,N
Pendle Borough Council,Operational Services,Premises Related Expense,Grounds : R & M : Day to Day : Routine,2101,JEWSON LIMITED,A0001323,03/08/2023,OPS0335621,78.3,N,,N,N
Pendle Borough Council,Operational Services,Premises Related Expense,Grounds : R & M : Day to Day : Routine,2101,JEWSON LIMITED,A0001323,10/08/2023,OPS0335772,126.71,N,,N,N
Pendle Borough Council,Operational Services,Premises Related Expense,Grounds : R & M : Day to Day : Routine,2101,JEWSON LIMITED,A0001323,10/08/2023,OPS0335771,59.86,N,,N,N
Pendle Borough Council,Operational Services,Supplies and Services,EFM Materials,4004,JEWSON LIMITED,A0001323,03/08/2023,OPS0335632,39.15,N,,N,N
Pendle Borough Council,Operational Services,Supplies and Services,Expenditure : Materials,0002,LANLEE SUPPLIES LIMITED,A0001672,03/08/2023,OPS0335619,13.69,N,,N,N
Pendle Borough Council,Operational Services,Premises Related Expense,Grounds : R & M : Day to Day : Routine,2101,LANLEE SUPPLIES LIMITED,A0001672,17/08/2023,OPS0335916,10.18,N,,N,N
Pendle Borough Council,Operational Services,Premises Related Expense,Grounds : R & M : Day to Day : Routine,2101,LANLEE SUPPLIES LIMITED,A0001672,10/08/2023,OPS0335764,365.86,N,,N,N
Pendle Borough Council,Operational Services,Supplies and Services,EFM Materials,4004,LANLEE SUPPLIES LIMITED,A0001672,03/08/2023,OPS0335631,127,N,,N,N
Pendle Borough Council,Operational Services,Transport Related Expense,Tprt : Repairs : General,3105,DICK LEIGH,A0001675,31/08/2023,OPS0336183,98.39,N,,N,N
Pendle Borough Council,Operational Services,Transport Related Expense,Tprt : Repairs : General,3105,DICK LEIGH,A0001675,31/08/2023,OPS0336188,204.35,N,,N,N
Pendle Borough Council,Operational Services,Transport Related Expense,Tprt : Repairs : General,3105,DICK LEIGH,A0001675,10/08/2023,OPS0335770,378.57,N,,N,N
Pendle Borough Council,Operational Services,Transport Related Expense,Tprt : Repairs : General,3105,DICK LEIGH,A0001675,31/08/2023,OPS0336188,112.7,N,,N,N
Pendle Borough Council,Operational Services,Transport Related Expense,Tprt : Repairs : General,3105,DICK LEIGH,A0001675,10/08/2023,OPS0335770,131.23,N,,N,N
Pendle Borough Council,Operational Services,Transport Related Expense,Tprt : Repairs : General,3105,DICK LEIGH,A0001675,10/08/2023,OPS0335770,28.78,N,,N,N
Pendle Borough Council,Economic Growth,Supplies and Services,Publicity & advertisement,4704,LANCASHIRE COUNTY COUNCIL,A0001690,24/08/2023,ECO0336091,406,N,,N,N
Pendle Borough Council,Operational Services,Capital Financing Costs,Lease costs:Computer (Orchard),8204,LANCASHIRE COUNTY COUNCIL,A0001690,03/08/2023,OPS0335640,9231,N,,N,N
Pendle Borough Council,Housing & Environmental Health,Capital Costs,Ren Grant : 1996 Act,CH22,LANCASHIRE COUNTY COUNCIL,A0001690,17/08/2023,HEH0335861,1293.2,N,,N,N
Pendle Borough Council,Operational Services,Premises Related Expense,Grounds : R & M : Day to Day : Routine,2101,JOHN MACADAM & SON (RESCUE) LTD,A0001846,03/08/2023,OPS0335628,120,N,,N,N
Pendle Borough Council,Operational Services,Premises Related Expense,Grounds : R & M : Day to Day : Routine,2101,JOHN MACADAM & SON (RESCUE) LTD,A0001846,03/08/2023,OPS0335630,48,N,,N,N
Pendle Borough Council,Operational Services,Premises Related Expense,Grounds : R & M : Day to Day : Routine,2101,JOHN MACADAM & SON (RESCUE) LTD,A0001846,03/08/2023,OPS0335629,120,N,,N,N
Pendle Borough Council,Operational Services,Premises Related Expense,Grounds : R & M : Day to Day : Routine,2101,JOHN MACADAM & SON (RESCUE) LTD,A0001846,10/08/2023,OPS0335742,250,N,,N,N
Pendle Borough Council,Policy & Commissioning,Capital Costs,Capital : Payments,cd14,NELSON & COLNE COLLEGE,A0001974,10/08/2023,POL0335712,304313.6,N,,N,N
Pendle Borough Council,Property Services,Premises Related Expense,Water & Sewerage,2501,WATER PLUS LIMITED,A0001986,10/08/2023,EST0335828,40.73,N,,N,N
Pendle Borough Council,Property Services,Premises Related Expense,Water & Sewerage,2501,WATER PLUS LIMITED,A0001986,24/08/2023,EST0336146,140.77,N,,N,N
Pendle Borough Council,Property Services,Premises Related Expense,Water & Sewerage,2501,WATER PLUS LIMITED,A0001986,03/08/2023,EST0335670,140.95,N,,N,N
Pendle Borough Council,Property Services,Premises Related Expense,Water & Sewerage,2501,WATER PLUS LIMITED,A0001986,24/08/2023,EST0336147,123.47,N,,N,N
Pendle Borough Council,Property Services,Premises Related Expense,Water & Sewerage,2501,WATER PLUS LIMITED,A0001986,10/08/2023,EST0335830,13.93,N,,N,N
Pendle Borough Council,Property Services,Premises Related Expense,Water & Sewerage,2501,WATER PLUS LIMITED,A0001986,10/08/2023,EST0335829,8.16,N,,N,N
Pendle Borough Council,Property Services,Premises Related Expense,Water & Sewerage,2501,WATER PLUS LIMITED,A0001986,10/08/2023,EST0335827,1.41,N,,N,N
Pendle Borough Council,Property Services,Premises Related Expense,Water & Sewerage,2501,WATER PLUS LIMITED,A0001986,10/08/2023,EST0335826,15.51,N,,N,N
Pendle Borough Council,Property Services,Premises Related Expense,Water & Sewerage,2501,WATER PLUS LIMITED,A0001986,10/08/2023,EST0335825,76.61,N,,N,N
Pendle Borough Council,Property Services,Premises Related Expense,Water & Sewerage,2501,WATER PLUS LIMITED,A0001986,03/08/2023,EST0335669,39.98,N,,N,N
Pendle Borough Council,Property Services,Premises Related Expense,Water & Sewerage,2501,WATER PLUS LIMITED,A0001986,24/08/2023,EST0336106,201.31,N,,N,N
Pendle Borough Council,Property Services,Premises Related Expense,Water & Sewerage,2501,WATER PLUS LIMITED,A0001986,24/08/2023,EST0336143,39.37,N,,N,N
Pendle Borough Council,Property Services,Premises Related Expense,Water & Sewerage,2501,WATER PLUS LIMITED,A0001986,24/08/2023,EST0336148,42.78,N,,N,N
Pendle Borough Council,Property Services,Premises Related Expense,Water & Sewerage,2501,WATER PLUS LIMITED,A0001986,10/08/2023,EST0335831,548.02,N,,N,N
Pendle Borough Council,Operational Services,Premises Related Expense,Bldgs : R & M : Day To Day,2001,OPTION HYGIENE LIMITED,A0002063,10/08/2023,OPS0335736,27.24,N,,N,N
Pendle Borough Council,Housing & Environmental Health,Supplies and Services,Postages,4501,ROYAL MAIL GROUP LIMITED,A0002281,17/08/2023,HEH0335902,2.17,N,,N,N
Pendle Borough Council,Housing & Environmental Health,Supplies and Services,Postages,4501,ROYAL MAIL GROUP LIMITED,A0002281,31/08/2023,HEH0336193,2.49,N,,N,N
Pendle Borough Council,Housing & Environmental Health,Supplies and Services,Postages,4501,ROYAL MAIL GROUP LIMITED,A0002281,03/08/2023,HEH0335249,44.55,N,,N,N
Pendle Borough Council,Housing & Environmental Health,Supplies and Services,Postages,4501,ROYAL MAIL GROUP LIMITED,A0002281,31/08/2023,HEH0336193,129.36,N,,N,N
Pendle Borough Council,Housing & Environmental Health,Supplies and Services,Postages,4501,ROYAL MAIL GROUP LIMITED,A0002281,03/08/2023,HEH0335636,245.24,N,,N,N
Pendle Borough Council,Housing & Environmental Health,Supplies and Services,Postages,4501,ROYAL MAIL GROUP LIMITED,A0002281,10/08/2023,HEH0335744,276.08,N,,N,N
Pendle Borough Council,Housing & Environmental Health,Supplies and Services,Postages,4501,ROYAL MAIL GROUP LIMITED,A0002281,17/08/2023,HEH0335902,286.49,N,,N,N
Pendle Borough Council,Housing & Environmental Health,Supplies and Services,Postages,4501,ROYAL MAIL GROUP LIMITED,A0002281,03/08/2023,HEH0335249,51.33,N,,N,N
Pendle Borough Council,Housing & Environmental Health,Supplies and Services,Postages,4501,ROYAL MAIL GROUP LIMITED,A0002281,03/08/2023,HEH4006731,-299.8,N,,N,N
Pendle Borough Council,Housing & Environmental Health,Supplies and Services,Postages,4501,ROYAL MAIL GROUP LIMITED,A0002281,17/08/2023,HEH0335902,8.2,N,,N,N
Pendle Borough Council,Housing & Environmental Health,Supplies and Services,Postages,4501,ROYAL MAIL GROUP LIMITED,A0002281,03/08/2023,HEH0335636,9.26,N,,N,N
Pendle Borough Council,Housing & Environmental Health,Supplies and Services,Postages,4501,ROYAL MAIL GROUP LIMITED,A0002281,31/08/2023,HEH0336193,11.08,N,,N,N
Pendle Borough Council,Housing & Environmental Health,Supplies and Services,Postages,4501,ROYAL MAIL GROUP LIMITED,A0002281,10/08/2023,HEH0335744,23.52,N,,N,N
Pendle Borough Council,Housing & Environmental Health,Supplies and Services,Postages,4501,ROYAL MAIL GROUP LIMITED,A0002281,03/08/2023,HEH0335249,51.52,N,,N,N
Pendle Borough Council,Housing & Environmental Health,Supplies and Services,Postages,4501,ROYAL MAIL GROUP LIMITED,A0002281,10/08/2023,HEH0335744,0.05,N,,N,N
Pendle Borough Council,Housing & Environmental Health,Supplies and Services,Postages,4501,ROYAL MAIL GROUP LIMITED,A0002281,03/08/2023,HEH0335636,0.23,N,,N,N
Pendle Borough Council,Housing & Environmental Health,Supplies and Services,Postages,4501,ROYAL MAIL GROUP LIMITED,A0002281,03/08/2023,HEH0335249,1.69,N,,N,N
Pendle Borough Council,Housing & Environmental Health,Supplies and Services,Postages,4501,ROYAL MAIL GROUP LIMITED,A0002281,17/08/2023,HEH0335902,2.45,N,,N,N
Pendle Borough Council,Housing & Environmental Health,Supplies and Services,Postages,4501,ROYAL MAIL GROUP LIMITED,A0002281,31/08/2023,HEH0336193,3.62,N,,N,N
Pendle Borough Council,Housing & Environmental Health,Supplies and Services,Postages,4501,ROYAL MAIL GROUP LIMITED,A0002281,03/08/2023,HEH0335636,8.98,N,,N,N
Pendle Borough Council,Housing & Environmental Health,Supplies and Services,Postages,4501,ROYAL MAIL GROUP LIMITED,A0002281,03/08/2023,HEH0335636,0.46,N,,N,N
Pendle Borough Council,Housing & Environmental Health,Supplies and Services,Postages,4501,ROYAL MAIL GROUP LIMITED,A0002281,03/08/2023,HEH0335249,2.24,N,,N,N
Pendle Borough Council,Housing & Environmental Health,Supplies and Services,Postages,4501,ROYAL MAIL GROUP LIMITED,A0002281,10/08/2023,HEH0335744,2.24,N,,N,N
Pendle Borough Council,Housing & Environmental Health,Supplies and Services,Postages,4501,ROYAL MAIL GROUP LIMITED,A0002281,31/08/2023,HEH0336193,3.36,N,,N,N
Pendle Borough Council,Housing & Environmental Health,Supplies and Services,Postages,4501,ROYAL MAIL GROUP LIMITED,A0002281,03/08/2023,HEH0335249,5.84,N,,N,N
Pendle Borough Council,Housing & Environmental Health,Supplies and Services,Postages,4501,ROYAL MAIL GROUP LIMITED,A0002281,17/08/2023,HEH0335902,5.84,N,,N,N
Pendle Borough Council,Housing & Environmental Health,Supplies and Services,Postages,4501,ROYAL MAIL GROUP LIMITED,A0002281,03/08/2023,HEH0335249,7.41,N,,N,N
Pendle Borough Council,Housing & Environmental Health,Supplies and Services,Postages,4501,ROYAL MAIL GROUP LIMITED,A0002281,10/08/2023,HEH0335744,8.76,N,,N,N
Pendle Borough Council,Housing & Environmental Health,Supplies and Services,Postages,4501,ROYAL MAIL GROUP LIMITED,A0002281,10/08/2023,HEH0335744,18.54,N,,N,N
Pendle Borough Council,Housing & Environmental Health,Supplies and Services,Postages,4501,ROYAL MAIL GROUP LIMITED,A0002281,31/08/2023,HEH0336193,19,N,,N,N
Pendle Borough Council,Housing & Environmental Health,Supplies and Services,Postages,4501,ROYAL MAIL GROUP LIMITED,A0002281,03/08/2023,HEH0335636,23.22,N,,N,N
Pendle Borough Council,Housing & Environmental Health,Supplies and Services,Postages,4501,ROYAL MAIL GROUP LIMITED,A0002281,17/08/2023,HEH0335902,29.88,N,,N,N
Pendle Borough Council,Housing & Environmental Health,Supplies and Services,Postages,4501,ROYAL MAIL GROUP LIMITED,A0002281,10/08/2023,HEH0335744,0.51,N,,N,N
Pendle Borough Council,Housing & Environmental Health,Supplies and Services,Postages,4501,ROYAL MAIL GROUP LIMITED,A0002281,03/08/2023,HEH0335636,2.26,N,,N,N
Pendle Borough Council,Housing & Environmental Health,Supplies and Services,Postages,4501,ROYAL MAIL GROUP LIMITED,A0002281,03/08/2023,HEH0335249,17.03,N,,N,N
Pendle Borough Council,Housing & Environmental Health,Supplies and Services,Postages,4501,ROYAL MAIL GROUP LIMITED,A0002281,17/08/2023,HEH0335902,24.46,N,,N,N
Pendle Borough Council,Housing & Environmental Health,Supplies and Services,Postages,4501,ROYAL MAIL GROUP LIMITED,A0002281,31/08/2023,HEH0336193,36.16,N,,N,N
Pendle Borough Council,Housing & Environmental Health,Supplies and Services,Postages,4501,ROYAL MAIL GROUP LIMITED,A0002281,03/08/2023,HEH0335636,89.54,N,,N,N
Pendle Borough Council,Housing & Environmental Health,Supplies and Services,Postages,4501,ROYAL MAIL GROUP LIMITED,A0002281,03/08/2023,HEH0335636,62.85,N,,N,N
Pendle Borough Council,Housing & Environmental Health,Supplies and Services,Postages,4501,ROYAL MAIL GROUP LIMITED,A0002281,10/08/2023,HEH0335744,67.76,N,,N,N
Pendle Borough Council,Housing & Environmental Health,Supplies and Services,Postages,4501,ROYAL MAIL GROUP LIMITED,A0002281,31/08/2023,HEH0336193,110.88,N,,N,N
Pendle Borough Council,Housing & Environmental Health,Supplies and Services,Postages,4501,ROYAL MAIL GROUP LIMITED,A0002281,17/08/2023,HEH0335902,127.32,N,,N,N
Pendle Borough Council,Housing & Environmental Health,Supplies and Services,Postages,4501,ROYAL MAIL GROUP LIMITED,A0002281,03/08/2023,HEH0335249,221.41,N,,N,N
Pendle Borough Council,Housing & Environmental Health,Supplies and Services,Postages,4501,ROYAL MAIL GROUP LIMITED,A0002281,10/08/2023,HEH0335744,2.66,N,,N,N
Pendle Borough Council,Housing & Environmental Health,Supplies and Services,Postages,4501,ROYAL MAIL GROUP LIMITED,A0002281,17/08/2023,HEH0335902,5,N,,N,N
Pendle Borough Council,Housing & Environmental Health,Supplies and Services,Postages,4501,ROYAL MAIL GROUP LIMITED,A0002281,31/08/2023,HEH0336193,11.1,N,,N,N
Pendle Borough Council,Housing & Environmental Health,Supplies and Services,Postages,4501,ROYAL MAIL GROUP LIMITED,A0002281,03/08/2023,HEH0335249,18.5,N,,N,N
Pendle Borough Council,Housing & Environmental Health,Supplies and Services,Postages,4501,ROYAL MAIL GROUP LIMITED,A0002281,03/08/2023,HEH0335636,46,N,,N,N
Pendle Borough Council,Housing & Environmental Health,Supplies and Services,Postages,4501,ROYAL MAIL GROUP LIMITED,A0002281,10/08/2023,HEH0335744,4.98,N,,N,N
Pendle Borough Council,Housing & Environmental Health,Supplies and Services,Postages,4501,ROYAL MAIL GROUP LIMITED,A0002281,03/08/2023,HEH0335636,7.47,N,,N,N
Pendle Borough Council,Housing & Environmental Health,Supplies and Services,Postages,4501,ROYAL MAIL GROUP LIMITED,A0002281,03/08/2023,HEH0335249,9.96,N,,N,N
Pendle Borough Council,Housing & Environmental Health,Supplies and Services,Postages,4501,ROYAL MAIL GROUP LIMITED,A0002281,17/08/2023,HEH0335902,9.96,N,,N,N
Pendle Borough Council,Housing & Environmental Health,Supplies and Services,Postages,4501,ROYAL MAIL GROUP LIMITED,A0002281,03/08/2023,HEH0335249,86.79,N,,N,N
Pendle Borough Council,Housing & Environmental Health,Supplies and Services,Postages,4501,ROYAL MAIL GROUP LIMITED,A0002281,17/08/2023,HEH0335902,125.9,N,,N,N
Pendle Borough Council,Housing & Environmental Health,Supplies and Services,Postages,4501,ROYAL MAIL GROUP LIMITED,A0002281,03/08/2023,HEH0335636,188.85,N,,N,N
Pendle Borough Council,Housing & Environmental Health,Supplies and Services,Postages,4501,ROYAL MAIL GROUP LIMITED,A0002281,31/08/2023,HEH0336193,252.93,N,,N,N
Pendle Borough Council,Housing & Environmental Health,Supplies and Services,Postages,4501,ROYAL MAIL GROUP LIMITED,A0002281,10/08/2023,HEH0335744,311.41,N,,N,N
Pendle Borough Council,Housing & Environmental Health,Supplies and Services,Postages,4501,ROYAL MAIL GROUP LIMITED,A0002281,10/08/2023,HEH0335744,4.2,N,,N,N
Pendle Borough Council,Housing & Environmental Health,Supplies and Services,Postages,4501,ROYAL MAIL GROUP LIMITED,A0002281,31/08/2023,HEH0336193,7.47,N,,N,N
Pendle Borough Council,Housing & Environmental Health,Supplies and Services,Postages,4501,ROYAL MAIL GROUP LIMITED,A0002281,17/08/2023,HEH0335902,22.63,N,,N,N
Pendle Borough Council,Housing & Environmental Health,Supplies and Services,Postages,4501,ROYAL MAIL GROUP LIMITED,A0002281,31/08/2023,HEH0336193,28.59,N,,N,N
Pendle Borough Council,Housing & Environmental Health,Supplies and Services,Postages,4501,ROYAL MAIL GROUP LIMITED,A0002281,03/08/2023,HEH0335636,34.11,N,,N,N
Pendle Borough Council,Housing & Environmental Health,Supplies and Services,Postages,4501,ROYAL MAIL GROUP LIMITED,A0002281,10/08/2023,HEH0335744,44.35,N,,N,N
Pendle Borough Council,Housing & Environmental Health,Supplies and Services,Postages,4501,ROYAL MAIL GROUP LIMITED,A0002281,03/08/2023,HEH0335249,47.87,N,,N,N
Pendle Borough Council,Operational Services,Transport Related Expense,Tprt : Annual Hire Charge,3601,STANLEY BROTHERS (TIPPERS) LTD,A0002422,31/08/2023,OPS0336171,2310,N,,N,N
Pendle Borough Council,Operational Services,Transport Related Expense,Tprt : Repairs : General,3105,SPALDINGS (UK) LTD,A0002537,31/08/2023,OPS0336187,913.51,N,,N,N
Pendle Borough Council,Operational Services,Premises Related Expense,Grounds : R & M : Day to Day : Routine,2101,ROBERTSON MEMORIALS,A0002590,24/08/2023,OPS0336050,185.42,N,,N,N
Pendle Borough Council,Operational Services,Premises Related Expense,Grounds : R & M : Day to Day : Routine,2101,ROBERTSON MEMORIALS,A0002590,24/08/2023,OPS0336049,422.08,N,,N,N
Pendle Borough Council,Economic Growth,Premises Related Expense,Bldgs : R & M : Day To Day,2001,T & F STEEL DESIGNS LTD,A0002627,17/08/2023,ECO0335865,280,N,,N,N
Pendle Borough Council,Economic Growth,Premises Related Expense,Bldgs : R & M : Day To Day,2001,T & F STEEL DESIGNS LTD,A0002627,17/08/2023,ECO0335865,648,N,,N,N
Pendle Borough Council,Housing & Environmental Health,Capital Costs,Ren Grant : 1996 Act,CH22,CLOSOMAT LIMITED,A0002685,17/08/2023,HEH0335862,4322,N,,N,N
Pendle Borough Council,"Planning, Building Control & Regulatory Services",Supplies and Services,EFM : Other Equipment,4003,TRISTAR PRINTERS LTD,A0002731,31/08/2023,PBC0336219,295,N,,N,N
Pendle Borough Council,Policy & Commissioning,Supplies and Services,Printing & Stationery,4301,TRISTAR PRINTERS LTD,A0002731,03/08/2023,POL0335675,135,N,,N,N
Pendle Borough Council,Operational Services,Supplies and Services,Publicity & advertisement,4704,TRISTAR PRINTERS LTD,A0002731,31/08/2023,OPS0336170,195,N,,N,N
Pendle Borough Council,Policy & Commissioning,Supplies and Services,Children`s holiday activities,4716,TRISTAR PRINTERS LTD,A0002731,24/08/2023,POL0336088,157,N,,N,N
Pendle Borough Council,Operational Services,Agency Staff,Emp : Agency Wages,1004,DHRB LIMITED T/A DRIVER HIRE (45680),A0003556,17/08/2023,OPS0335893,635.91,N,,N,N
Pendle Borough Council,Operational Services,Agency Staff,Emp : Agency Wages,1004,DHRB LIMITED T/A DRIVER HIRE (45680),A0003556,31/08/2023,OPS0336173,761.17,N,,N,N
Pendle Borough Council,Operational Services,Agency Staff,Emp : Agency Wages,1004,DHRB LIMITED T/A DRIVER HIRE (45680),A0003556,31/08/2023,OPS0336175,770.79,N,,N,N
Pendle Borough Council,Policy & Commissioning,Supplies and Services,Subscriptions & Donations,4706,BUILDING BRIDGES PENDLE,A0005524,10/08/2023,POL0335800,7500,N,1144741,N,N
Pendle Borough Council,Operational Services,Transport Related Expense,Diesel Oil,3202,CERTAS ENERGY UK T/A TOWNSON BROS,A0005683,24/08/2023,OPS0336070,1278.75,N,,N,N
Pendle Borough Council,Operational Services,Transport Related Expense,Diesel Oil,3202,CERTAS ENERGY UK T/A TOWNSON BROS,A0005683,24/08/2023,OPS0336070,1278.75,N,,N,N
Pendle Borough Council,Operational Services,Transport Related Expense,Diesel Oil,3202,CERTAS ENERGY UK T/A TOWNSON BROS,A0005683,24/08/2023,OPS0336070,1278.75,N,,N,N
Pendle Borough Council,Operational Services,Transport Related Expense,Diesel Oil,3202,CERTAS ENERGY UK T/A TOWNSON BROS,A0005683,24/08/2023,OPS0336070,1278.75,N,,N,N
Pendle Borough Council,Legal & Democratic Services,Indirect Employee Expenses,Staff Refreshments,1261,PHILIP SANDERSON,A0006611,17/08/2023,LAD0335788,22.22,N,,N,N
Pendle Borough Council,Legal & Democratic Services,Supplies and Services,Hospitality,4611,PHILIP SANDERSON,A0006611,17/08/2023,LAD0335788,22.22,N,,N,N
Pendle Borough Council,Housing & Environmental Health,Supplies and Services,Other Expenses,4705,ASHVILLE GUEST HOUSE,A0009675,31/08/2023,HEH0336158,480,N,,N,N
Pendle Borough Council,Policy & Commissioning,Supplies and Services,Grant Funding,4737,COLNE OPEN DOOR CENTRE,A0009836,03/08/2023,POL0335403,22000,N,1121144,N,N
Pendle Borough Council,Finance,Premises Related Expense,Gas,2202,PENDLE LEISURE LIMITED,A0012961,10/08/2023,FIN0335789,56.1,N,XR43029,N,N
Pendle Borough Council,Finance,Premises Related Expense,Gas,2202,PENDLE LEISURE LIMITED,A0012961,10/08/2023,FIN0335789,56.3,N,XR43029,N,N
Pendle Borough Council,Finance,Premises Related Expense,Gas,2202,PENDLE LEISURE LIMITED,A0012961,10/08/2023,FIN0335789,57.97,N,XR43029,N,N
Pendle Borough Council,Finance,Premises Related Expense,Gas,2202,PENDLE LEISURE LIMITED,A0012961,10/08/2023,FIN0335789,413.73,N,XR43029,N,N
Pendle Borough Council,Finance,Premises Related Expense,Gas,2202,PENDLE LEISURE LIMITED,A0012961,10/08/2023,FIN0335789,682.12,N,XR43029,N,N
Pendle Borough Council,Finance,Premises Related Expense,Gas,2202,PENDLE LEISURE LIMITED,A0012961,10/08/2023,FIN0335789,990.57,N,XR43029,N,N
Pendle Borough Council,Finance,Premises Related Expense,Electricity,2203,PENDLE LEISURE LIMITED,A0012961,10/08/2023,FIN0335789,840.54,N,XR43029,N,N
Pendle Borough Council,Finance,Premises Related Expense,Electricity,2203,PENDLE LEISURE LIMITED,A0012961,10/08/2023,FIN0335789,841.74,N,XR43029,N,N
Pendle Borough Council,Finance,Premises Related Expense,Electricity,2203,PENDLE LEISURE LIMITED,A0012961,10/08/2023,FIN0335789,872.41,N,XR43029,N,N
Pendle Borough Council,Finance,Premises Related Expense,Water & Sewerage,2501,PENDLE LEISURE LIMITED,A0012961,10/08/2023,FIN0335789,12.57,N,XR43029,N,N
Pendle Borough Council,Finance,Premises Related Expense,Water & Sewerage,2501,PENDLE LEISURE LIMITED,A0012961,10/08/2023,FIN0335789,12.57,N,XR43029,N,N
Pendle Borough Council,Finance,Premises Related Expense,Water & Sewerage,2501,PENDLE LEISURE LIMITED,A0012961,10/08/2023,FIN0335789,12.97,N,XR43029,N,N
Pendle Borough Council,Finance,Premises Related Expense,Water & Sewerage,2501,PENDLE LEISURE LIMITED,A0012961,10/08/2023,FIN0335789,94.12,N,XR43029,N,N
Pendle Borough Council,Finance,Premises Related Expense,Water & Sewerage,2501,PENDLE LEISURE LIMITED,A0012961,10/08/2023,FIN0335789,141.17,N,XR43029,N,N
Pendle Borough Council,Policy & Commissioning,Supplies and Services,Children`s holiday activities,4716,PENDLE LEISURE LIMITED,A0012961,24/08/2023,POL0335852,1000,N,XR43029,N,N
Pendle Borough Council,Policy & Commissioning,,Lancashire County Council,9109,PENDLE LEISURE LIMITED,A0012961,03/08/2023,POL0335404,15056.75,N,XR43029,N,N
Pendle Borough Council,Operational Services,Agency Staff,Emp : Agency Wages,1004,LANDSCAPE ENGINEERING LTD,A0013135,03/08/2023,OPS0335623,3087.3,N,,N,N
Pendle Borough Council,Operational Services,Agency Staff,Emp : Agency Wages,1004,LANDSCAPE ENGINEERING LTD,A0013135,03/08/2023,OPS0335624,3400,N,,N,N
Pendle Borough Council,Operational Services,Supplies and Services,Sub-Contractors,4007,LANDSCAPE ENGINEERING LTD,A0013135,03/08/2023,OPS0335625,2672.2,N,,N,N
Pendle Borough Council,Operational Services,Supplies and Services,Sub-Contractors,4007,LANDSCAPE ENGINEERING LTD,A0013135,03/08/2023,OPS0335626,2800,N,,N,N
Pendle Borough Council,Operational Services,Supplies and Services,Sub-Contractors,4007,ORCHARD RECYCLING SERVICE,A0015803,10/08/2023,OPS0335733,2387,N,,N,N
Pendle Borough Council,Operational Services,Supplies and Services,Sub-Contractors,4007,ORCHARD RECYCLING SERVICE,A0015803,24/08/2023,OPS0336077,2440.9,N,,N,N
Pendle Borough Council,Operational Services,Supplies and Services,Sub-Contractors,4007,ORCHARD RECYCLING SERVICE,A0015803,03/08/2023,OPS0335633,2448.6,N,,N,N
Pendle Borough Council,Operational Services,Supplies and Services,Sub-Contractors,4007,ORCHARD RECYCLING SERVICE,A0015803,17/08/2023,OPS0335887,2448.6,N,,N,N
Pendle Borough Council,Operational Services,Supplies and Services,Sub-Contractors,4007,ORCHARD RECYCLING SERVICE,A0015803,31/08/2023,OPS0336162,2679.6,N,,N,N
Pendle Borough Council,Finance,Supplies and Services,Other Expenses,4705,MAYORESS CHARITY COMMITTEE,A0015905,17/08/2023,FIN0335959,2370,N,,N,N
Pendle Borough Council,Finance,,Sales Income : Non-VATable,9301,MAYORESS CHARITY COMMITTEE,A0015905,17/08/2023,FIN0335959,2223.1,N,,N,N
Pendle Borough Council,Housing & Environmental Health,Capital Costs,Ren Grant : 1996 Act,CH22,STANNAH LIFT SERVICES LTD,A0021089,03/08/2023,HEH0335245,2999,N,,N,N
Pendle Borough Council,Housing & Environmental Health,Capital Costs,Ren Grant : 1996 Act,CH22,STANNAH LIFT SERVICES LTD,A0021089,03/08/2023,HEH0335657,6637,N,,N,N
Pendle Borough Council,Housing & Environmental Health,Capital Costs,Ren Grant : 1996 Act,CH22,STANNAH LIFT SERVICES LTD,A0021089,17/08/2023,HEH0335880,16247,N,,N,N
Pendle Borough Council,Operational Services,Supplies and Services,Sub-Contractors,4007,ASPEN VALLEY KENNELS & CATTERY,A0022106,10/08/2023,OPS0335734,794,N,,N,N
Pendle Borough Council,Operational Services,Supplies and Services,Other Expenses,4705,ASPEN VALLEY KENNELS & CATTERY,A0022106,10/08/2023,OPS0335734,1030.23,N,,N,N
Pendle Borough Council,Economic Growth,Capital Costs,Capital : Payments,CD14,DAVID GOODGER & ASSOCIATES LT,A0024824,17/08/2023,ECO0335870,500,N,,N,N
Pendle Borough Council,Economic Growth,Capital Costs,Capital : Payments,CD14,DAVID GOODGER & ASSOCIATES LT,A0024824,17/08/2023,ECO0335871,500,N,,N,N
Pendle Borough Council,Housing & Environmental Health,Supplies and Services,Other Expenses,4705,GRADKO INTERNATIONAL LTD,A0025806,24/08/2023,HEH0336032,211.25,N,,N,N
Pendle Borough Council,Operational Services,Indirect Employee Expenses,Training,1211,SPECIALIST TRAINING & CONSULTANCY SERVICES LTD,A0026831,10/08/2023,OPS0335735,5,N,,N,N
Pendle Borough Council,Operational Services,Indirect Employee Expenses,Training,1211,SPECIALIST TRAINING & CONSULTANCY SERVICES LTD,A0026831,10/08/2023,OPS0335735,153.85,N,,N,N
Pendle Borough Council,Operational Services,Premises Related Expense,Bldgs : R & M : Day To Day,2001,BRITISH TELECOMMUNICATIONS PLC,A0040001,17/08/2023,OPS0335904,173.7,N,,N,N
Pendle Borough Council,Legal & Democratic Services,Supplies and Services,EFM : Photocopiers,4001,CANON (UK) LIMITED,A0040400,24/08/2023,LAD0336043,17.4,N,,N,N
Pendle Borough Council,Legal & Democratic Services,Supplies and Services,EFM : Photocopiers,4001,CANON (UK) LIMITED,A0040400,24/08/2023,LAD0336043,0.32,N,,N,N
Pendle Borough Council,Legal & Democratic Services,Supplies and Services,EFM : Photocopiers,4001,CANON (UK) LIMITED,A0040400,24/08/2023,LAD0336043,0.44,N,,N,N
Pendle Borough Council,Legal & Democratic Services,Supplies and Services,EFM : Photocopiers,4001,CANON (UK) LIMITED,A0040400,24/08/2023,LAD0336043,37.2,N,,N,N
Pendle Borough Council,Operational Services,Supplies and Services,EFM : Photocopiers,4001,CANON (UK) LIMITED,A0040400,03/08/2023,OPS0335641,422.5,N,,N,N
Pendle Borough Council,Operational Services,Supplies and Services,EFM : Photocopiers,4001,CANON (UK) LIMITED,A0040400,24/08/2023,OPS0336080,445.01,N,,N,N
Pendle Borough Council,"Planning, Building Control & Regulatory Services",Supplies and Services,EFM : Other Equipment,4003,CANON (UK) LIMITED,A0040400,03/08/2023,PBC0335647,19.8,N,,N,N
Pendle Borough Council,"Planning, Building Control & Regulatory Services",Supplies and Services,EFM : Other Equipment,4003,CANON (UK) LIMITED,A0040400,31/08/2023,PBC0336163,25.15,N,,N,N
Pendle Borough Council,Directorate,Supplies and Services,Printing & Stationery,4301,CANON (UK) LIMITED,A0040400,24/08/2023,DIR0336042,59.09,N,,N,N
Pendle Borough Council,"Planning, Building Control & Regulatory Services",Supplies and Services,Printing & Stationery,4301,CANON (UK) LIMITED,A0040400,24/08/2023,PBC0336105,46.69,N,,N,N
Pendle Borough Council,Property Services,Premises Related Expense,Bldgs : R & M : Day To Day,2001,PENNINE FIRE & SAFETY LTD,A0040931,24/08/2023,EST0336130,300,N,,N,N
Pendle Borough Council,Property Services,Premises Related Expense,Bldgs : R & M : Day To Day,2001,PENNINE FIRE & SAFETY LTD,A0040931,24/08/2023,EST0336131,300,N,,N,N
Pendle Borough Council,Property Services,Premises Related Expense,Bldgs : R & M : Day To Day,2001,PENNINE FIRE & SAFETY LTD,A0040931,24/08/2023,EST0336153,300,N,,N,N
Pendle Borough Council,Property Services,Premises Related Expense,Bldgs : R & M : Day To Day,2001,PENNINE FIRE & SAFETY LTD,A0040931,10/08/2023,EST0335810,300,N,,N,N
Pendle Borough Council,Property Services,Premises Related Expense,Bldgs : R & M : Day To Day,2001,PENNINE FIRE & SAFETY LTD,A0040931,24/08/2023,EST0336132,300,N,,N,N
Pendle Borough Council,Property Services,Premises Related Expense,Bldgs : R & M : Day To Day,2001,PENNINE FIRE & SAFETY LTD,A0040931,10/08/2023,EST0335809,300,N,,N,N
Pendle Borough Council,Property Services,Premises Related Expense,Bldgs : R & M : Day To Day,2001,PENNINE FIRE & SAFETY LTD,A0040931,24/08/2023,EST0336152,42.15,N,,N,N
Pendle Borough Council,Property Services,Premises Related Expense,Bldgs : R & M : Day To Day,2001,PENNINE FIRE & SAFETY LTD,A0040931,24/08/2023,EST0336151,44.5,N,,N,N
Pendle Borough Council,Legal & Democratic Services,Supplies and Services,Printing & Stationery,4301,CIVICA ELECTION SERVICES,A0041321,17/08/2023,LAD0335895,2881.94,N,,N,N
Pendle Borough Council,Legal & Democratic Services,Supplies and Services,Printing & Stationery,4301,CIVICA ELECTION SERVICES,A0041321,31/08/2023,LAD0336161,985.01,N,,N,N
Pendle Borough Council,Policy & Commissioning,Supplies and Services,Other Expenses,4705,VUELIO -  A I MEDIA & COMMUNICATIONS,A0041869,10/08/2023,POL0335801,3250,N,,N,N
Pendle Borough Council,Policy & Commissioning,Supplies and Services,Subscriptions & Donations,4706,COUNCIL FOR VOLUNTARY SERVICE,A0042503,03/08/2023,POL0335643,5000,N,1062446,N,N
Pendle Borough Council,Economic Growth,Capital Costs,Capital : Payments,CD14,D J LINGARD & ASSOCIATES LTD,A0042727,24/08/2023,ECO0336094,180,N,,N,N
Pendle Borough Council,Operational Services,Transport Related Expense,Tprt : Repairs : General,3105, J RUSHTON,A0043864,17/08/2023,OPS0335909,80,N,,N,N
Pendle Borough Council,Legal & Democratic Services,Supplies and Services,Meeting Expenses,4610,WEST CRAVEN BAPTIST CHURCH,A0045270,17/08/2023,LAD0335790,40,N,,N,N
Pendle Borough Council,Operational Services,Premises Related Expense,Grounds : R & M : Day to Day : Routine,2101,SUTCLIFFE PLAY LTD,A0045788,17/08/2023,OPS0335911,46.98,N,,N,N
Pendle Borough Council,Operational Services,Capital Costs,Capital : Payments,cd14,SUTCLIFFE PLAY LTD,A0045788,03/08/2023,OPS0335622,27441.23,N,,N,N
Pendle Borough Council,Economic Growth,Premises Related Expense,Grounds : R & M : Day to Day : Routine,2101,LOOP PUBLISHING LTD,A0047429,24/08/2023,ECO0336090,200,N,,N,N
Pendle Borough Council,Property Services,Premises Related Expense,Electricity,2203,NPOWER,A0048483,10/08/2023,EST0335803,726.62,N,,N,N
Pendle Borough Council,Operational Services,Transport Related Expense,Tprt : Repairs : General,3105,ROSSENDALE VULCANISING (SALES LTD),A0051239,17/08/2023,OPS0335920,9,N,,N,N
Pendle Borough Council,Operational Services,Transport Related Expense,Tprt : Repairs : General,3105,ROSSENDALE VULCANISING (SALES LTD),A0051239,17/08/2023,OPS0335920,55,N,,N,N
Pendle Borough Council,Operational Services,Transport Related Expense,Tprt : Repairs : General,3105,ROSSENDALE VULCANISING (SALES LTD),A0051239,17/08/2023,OPS0335920,55,N,,N,N
Pendle Borough Council,Operational Services,Transport Related Expense,Tprt : Repairs : General,3105,ROSSENDALE VULCANISING (SALES LTD),A0051239,17/08/2023,OPS0335920,55,N,,N,N
Pendle Borough Council,Operational Services,Transport Related Expense,Tprt : Repairs : General,3105,ROSSENDALE VULCANISING (SALES LTD),A0051239,17/08/2023,OPS0335920,15,N,,N,N
Pendle Borough Council,Operational Services,Transport Related Expense,Tprt : Repairs : General,3105,ROSSENDALE VULCANISING (SALES LTD),A0051239,17/08/2023,OPS0335920,22,N,,N,N
Pendle Borough Council,Operational Services,Transport Related Expense,Tprt : Repairs : General,3105,ROSSENDALE VULCANISING (SALES LTD),A0051239,17/08/2023,OPS0335920,22,N,,N,N
Pendle Borough Council,Finance,Premises Related Expense,Rents,2301,LIBERATA UK LTD,A0051618,10/08/2023,FIN0335799,514.83,N,,N,N
Pendle Borough Council,Finance,Agency Costs,#N/A,5303,LIBERATA UK LTD,A0051618,10/08/2023,FIN0335798,6191.67,N,,N,N
Pendle Borough Council,Finance,Agency Costs,#N/A,5303,LIBERATA UK LTD,A0051618,10/08/2023,FIN0335798,34439.05,N,,N,N
Pendle Borough Council,Finance,Agency Costs,#N/A,5303,LIBERATA UK LTD,A0051618,10/08/2023,FIN0335798,30524.21,N,,N,N
Pendle Borough Council,Finance,Agency Costs,#N/A,5303,LIBERATA UK LTD,A0051618,10/08/2023,FIN0335798,87715.02,N,,N,N
Pendle Borough Council,Finance,Agency Costs,#N/A,5303,LIBERATA UK LTD,A0051618,10/08/2023,FIN0335798,57718.75,N,,N,N
Pendle Borough Council,Finance,Agency Costs,#N/A,5303,LIBERATA UK LTD,A0051618,10/08/2023,FIN0335798,89614.79,N,,N,N
Pendle Borough Council,Finance,Agency Costs,#N/A,5303,LIBERATA UK LTD,A0051618,10/08/2023,FIN0335798,117970.91,N,,N,N
Pendle Borough Council,Finance,Capital Costs,Capital : Salaries,CD13,LIBERATA UK LTD,A0051618,03/08/2023,FIN0335683,7809,N,,N,N
Pendle Borough Council,Housing & Environmental Health,Capital Costs,Capital: Design Fees,CD53,LIBERATA UK LTD,A0051618,10/08/2023,HEH0335721,3947.83,N,,N,N
Pendle Borough Council,Property Services,Premises Related Expense,Electricity,2203,SOUTHERN ELECTRIC,A0051726,17/08/2023,EST4006713,-3379.07,N,,N,N
Pendle Borough Council,Property Services,Premises Related Expense,Electricity,2203,SOUTHERN ELECTRIC,A0051726,17/08/2023,EST4006618,-1672.5,N,,N,N
Pendle Borough Council,Property Services,Premises Related Expense,Electricity,2203,SOUTHERN ELECTRIC,A0051726,17/08/2023,EST4006714,-401.79,N,,N,N
Pendle Borough Council,Property Services,Premises Related Expense,Electricity,2203,SOUTHERN ELECTRIC,A0051726,17/08/2023,EST4006619,-43.44,N,,N,N
Pendle Borough Council,Property Services,Premises Related Expense,Electricity,2203,SOUTHERN ELECTRIC,A0051726,17/08/2023,EST4006620,-17.82,N,,N,N
Pendle Borough Council,Property Services,Premises Related Expense,Electricity,2203,SOUTHERN ELECTRIC,A0051726,17/08/2023,EST0329594,17.82,N,,N,N
Pendle Borough Council,Property Services,Premises Related Expense,Electricity,2203,SOUTHERN ELECTRIC,A0051726,17/08/2023,EST0329592,40.26,N,,N,N
Pendle Borough Council,Property Services,Premises Related Expense,Electricity,2203,SOUTHERN ELECTRIC,A0051726,17/08/2023,EST0329595,43.44,N,,N,N
Pendle Borough Council,Property Services,Premises Related Expense,Electricity,2203,SOUTHERN ELECTRIC,A0051726,17/08/2023,EST0329593,63.13,N,,N,N
Pendle Borough Council,Property Services,Premises Related Expense,Electricity,2203,SOUTHERN ELECTRIC,A0051726,17/08/2023,EST0333391,107.8,N,,N,N
Pendle Borough Council,Property Services,Premises Related Expense,Electricity,2203,SOUTHERN ELECTRIC,A0051726,17/08/2023,EST0333389,113.99,N,,N,N
Pendle Borough Council,Property Services,Premises Related Expense,Electricity,2203,SOUTHERN ELECTRIC,A0051726,17/08/2023,EST0333390,120.35,N,,N,N
Pendle Borough Council,Property Services,Premises Related Expense,Electricity,2203,SOUTHERN ELECTRIC,A0051726,17/08/2023,EST0335939,451.15,N,,N,N
Pendle Borough Council,Property Services,Premises Related Expense,Electricity,2203,SOUTHERN ELECTRIC,A0051726,17/08/2023,EST0335940,1672.5,N,,N,N
Pendle Borough Council,Property Services,Premises Related Expense,Electricity,2203,SOUTHERN ELECTRIC,A0051726,17/08/2023,EST0335941,3379.07,N,,N,N
Pendle Borough Council,Property Services,Premises Related Expense,Electricity,2203,SOUTHERN ELECTRIC,A0051726,17/08/2023,EST0335823,372.05,N,,N,N
Pendle Borough Council,Property Services,Premises Related Expense,Electricity,2203,SOUTHERN ELECTRIC,A0051726,17/08/2023,EST0333913,443.05,N,,N,N
Pendle Borough Council,Property Services,Premises Related Expense,Electricity,2203,SOUTHERN ELECTRIC,A0051726,17/08/2023,EST0334462,456.36,N,,N,N
Pendle Borough Council,Property Services,Premises Related Expense,Electricity,2203,SOUTHERN ELECTRIC,A0051726,17/08/2023,EST0335291,483.53,N,,N,N
Pendle Borough Council,Operational Services,Supplies and Services,Expenditure : Materials,0002,ARCOL ENGINEERING LTD,A0052060,10/08/2023,OPS0335774,180,N,,N,N
Pendle Borough Council,Operational Services,Supplies and Services,Other Expenses,4705,IPL PLASTICS (UK) LIMITED,A0052535,10/08/2023,OPS0335749,3162.5,N,,N,N
Pendle Borough Council,Property Services,Indirect Employee Expenses,Staff Refreshments,1261,SIEMENS FINANCIAL SERVICES LIMITED,A0054268,10/08/2023,EST0335812,260,N,,N,N
Pendle Borough Council,Operational Services,Premises Related Expense,Grounds : R & M : Day to Day : Routine,2101,THE PLAY INSPECTION COMPANY LTD,A0054674,31/08/2023,OPS0336192,3372.3,N,,N,N
Pendle Borough Council,Housing & Environmental Health,Supplies and Services,Other Expenses,4705,TOGETHER HOUSING ASSOCIATION,A0055008,03/08/2023,HEH0335644,119.59,N,,N,N
Pendle Borough Council,Housing & Environmental Health,Supplies and Services,Other Expenses,4705,TOGETHER HOUSING ASSOCIATION,A0055008,03/08/2023,HEH0335645,119.59,N,,N,N
Pendle Borough Council,Housing & Environmental Health,Supplies and Services,Other Expenses,4705,TOGETHER HOUSING ASSOCIATION,A0055008,03/08/2023,HEH0335646,119.59,N,,N,N
Pendle Borough Council,Housing & Environmental Health,Supplies and Services,#N/A,4425,UNITED UTILITIES PROPERTY SOLUTIONS LTD,A0055020,03/08/2023,HEH0335599,516.93,N,,N,N
Pendle Borough Council,Economic Growth,Premises Related Expense,Bldgs : R & M : Day To Day,2001,A BINNS & CO,A0057121,24/08/2023,ECO0336097,580,N,,N,N
Pendle Borough Council,Operational Services,Premises Related Expense,Grounds : R & M : Day to Day : Routine,2101,A BINNS & CO,A0057121,10/08/2023,OPS0335775,1770,N,,N,N
Pendle Borough Council,Operational Services,Premises Related Expense,Grounds : R & M : Day to Day : Routine,2101,A BINNS & CO,A0057121,24/08/2023,OPS0336046,900,N,,N,N
Pendle Borough Council,Operational Services,Supplies and Services,Publicity & advertisement,4704,NB COLOUR PRINT LTD,A0057578,24/08/2023,OPS0336078,328,N,,N,N
Pendle Borough Council,Legal & Democratic Services,Supplies and Services,Printing & Stationery,4301,CIVICA UK LIMITED,A0057595,03/08/2023,LAD0335615,240.95,N,,N,N
Pendle Borough Council,Legal & Democratic Services,Supplies and Services,Postages,4501,CIVICA UK LIMITED,A0057595,03/08/2023,LAD0335615,240.79,N,,N,N
Pendle Borough Council,Operational Services,Transport Related Expense,Tprt : Repairs : General,3105,UNITED UTILITIES,A0059246,10/08/2023,OPS0335751,36.69,N,,N,N
Pendle Borough Council,Operational Services,Transport Related Expense,Tprt : Repairs : General,3105,UNITED UTILITIES,A0059246,10/08/2023,OPS0335751,36.69,N,,N,N
Pendle Borough Council,Economic Growth,Agency Costs,Lancashire C C,5102,NSL LIMITED,A0059256,17/08/2023,ECO0335869,2336.8,N,,N,N
Pendle Borough Council,"Planning, Building Control & Regulatory Services",Supplies and Services,Adverts : Statutory Notice,4702,NATIONAL WORLD PUBLISHING LTD,A0059640,17/08/2023,PBC0335849,260.01,N,,N,N
Pendle Borough Council,"Planning, Building Control & Regulatory Services",Supplies and Services,Adverts : Statutory Notice,4702,NATIONAL WORLD PUBLISHING LTD,A0059640,24/08/2023,PBC0336083,338.01,N,,N,N
Pendle Borough Council,"Planning, Building Control & Regulatory Services",Supplies and Services,Adverts : Statutory Notice,4702,NATIONAL WORLD PUBLISHING LTD,A0059640,10/08/2023,PBC0335723,390.01,N,,N,N
Pendle Borough Council,Legal & Democratic Services,Supplies and Services,Other Expenses,4705,NATIONAL WORLD PUBLISHING LTD,A0059640,10/08/2023,LAD0335754,390.01,N,,N,N
Pendle Borough Council,Legal & Democratic Services,Supplies and Services,Other Expenses,4705,NATIONAL WORLD PUBLISHING LTD,A0059640,17/08/2023,LAD0335898,390.01,N,,N,N
Pendle Borough Council,Legal & Democratic Services,,Other Income : Non-VATable,9303,NATIONAL WORLD PUBLISHING LTD,A0059640,03/08/2023,LAD0335397,234.01,N,,N,N
Pendle Borough Council,Legal & Democratic Services,,Other Income : Non-VATable,9303,NATIONAL WORLD PUBLISHING LTD,A0059640,03/08/2023,LAD0335609,234.01,N,,N,N
Pendle Borough Council,Legal & Democratic Services,,Other Income : Non-VATable,9303,NATIONAL WORLD PUBLISHING LTD,A0059640,03/08/2023,LAD0335610,234.01,N,,N,N
Pendle Borough Council,Housing & Environmental Health,Transfer Payments,Accommodation ,6103,HILL VIEW (PRIVATE) HOTEL,A0059754,24/08/2023,HEH0336103,3315,N,,N,N
Pendle Borough Council,Housing & Environmental Health,Transfer Payments,Accommodation ,6103,HILL VIEW (PRIVATE) HOTEL,A0059754,17/08/2023,HEH0335912,7150,N,,N,N
Pendle Borough Council,Finance,Transfer Payments,Accommodation ,6103,HILL VIEW (PRIVATE) HOTEL,A0059754,02/08/2023,FIN0336385,9360,N,,N,N
Pendle Borough Council,Property Services,Premises Related Expense,Bldgs : R & M : Day To Day,2001,MAXIGIENE ENVIRONMENTAL SERVICES LTD,A0060911,03/08/2023,EST0335668,25,N,,N,N
Pendle Borough Council,Property Services,Premises Related Expense,Bldgs : R & M : Day To Day,2001,MAXIGIENE ENVIRONMENTAL SERVICES LTD,A0060911,24/08/2023,EST0336138,25,N,,N,N
Pendle Borough Council,Property Services,Supplies and Services,Other Expenses,4705,MAXIGIENE ENVIRONMENTAL SERVICES LTD,A0060911,03/08/2023,EST0335666,640,N,,N,N
Pendle Borough Council,Property Services,Supplies and Services,Other Expenses,4705,MAXIGIENE ENVIRONMENTAL SERVICES LTD,A0060911,24/08/2023,EST0336136,640,N,,N,N
Pendle Borough Council,Operational Services,Supplies and Services,EFM Materials,4004,CONTAINER CARE SOLUTIONS LIMITED,A0061112,03/08/2023,OPS0335634,1000,N,,N,N
Pendle Borough Council,Operational Services,Supplies and Services,EFM Materials,4004,CONTAINER CARE SOLUTIONS LIMITED,A0061112,24/08/2023,OPS0336073,1400,N,,N,N
Pendle Borough Council,Property Services,Premises Related Expense,Bldgs : R & M : Day To Day,2001,KEYPLUS SECURITY LIMITED,A0062723,10/08/2023,EST0335811,26.41,N,,N,N
Pendle Borough Council,Legal & Democratic Services,Premises Related Expense,Rents,2301,THE RAINHALL CENTRE,A0066193,17/08/2023,LAD0335787,45,N,,N,N
Pendle Borough Council,"Planning, Building Control & Regulatory Services",Supplies and Services,Other Expenses,4705,THE RAINHALL CENTRE,A0066193,10/08/2023,PBC0335725,112.5,N,,N,N
Pendle Borough Council,Operational Services,Transport Related Expense,Diesel Oil,3202,THE PETROL TANK COMPANY LTD,A0066465,17/08/2023,OPS0335915,120,N,,N,N
Pendle Borough Council,Human Resources,Transport Related Expense,Tprt : Annual Hire Charge,3601,LEX AUTOLEASE LIMITED,A0066530,17/08/2023,PER0335864,343.04,N,,N,N
Pendle Borough Council,Human Resources,Transport Related Expense,Tprt : Annual Hire Charge,3601,LEX AUTOLEASE LIMITED,A0066530,24/08/2023,PER0336037,343.04,N,,N,N
Pendle Borough Council,Property Services,Premises Related Expense,Bldgs : R & M : Day To Day,2001,SPEAKMAN CONTRACTORS LTD,A0066581,17/08/2023,EST0335928,888,N,,N,N
Pendle Borough Council,Property Services,Premises Related Expense,Bldgs : R & M : Day To Day,2001,SPEAKMAN CONTRACTORS LTD,A0066581,17/08/2023,EST0335928,563.09,N,,N,N
Pendle Borough Council,Property Services,Premises Related Expense,Bldgs : R & M : Day To Day,2001,SPEAKMAN CONTRACTORS LTD,A0066581,17/08/2023,EST0335928,191.01,N,,N,N
Pendle Borough Council,Property Services,Premises Related Expense,Bldgs : R & M : Day To Day,2001,SPEAKMAN CONTRACTORS LTD,A0066581,17/08/2023,EST0335928,27.93,N,,N,N
Pendle Borough Council,Property Services,Premises Related Expense,Bldgs : R & M : Day To Day,2001,SPEAKMAN CONTRACTORS LTD,A0066581,17/08/2023,EST0335928,107.81,N,,N,N
Pendle Borough Council,Property Services,Premises Related Expense,Bldgs : R & M : Day To Day,2001,SPEAKMAN CONTRACTORS LTD,A0066581,17/08/2023,EST0335928,153.31,N,,N,N
Pendle Borough Council,Property Services,Premises Related Expense,Bldgs : R & M : Day To Day,2001,SPEAKMAN CONTRACTORS LTD,A0066581,17/08/2023,EST0335928,218.91,N,,N,N
Pendle Borough Council,Property Services,Premises Related Expense,Bldgs : R & M : Day To Day,2001,SPEAKMAN CONTRACTORS LTD,A0066581,17/08/2023,EST0335928,261.15,N,,N,N
Pendle Borough Council,Property Services,Premises Related Expense,Grounds : R & M : Day to Day : Routine,2101,SPEAKMAN CONTRACTORS LTD,A0066581,17/08/2023,EST0335928,1248.44,N,,N,N
Pendle Borough Council,Property Services,Supplies and Services,Sub-Contractors,4007,SPEAKMAN CONTRACTORS LTD,A0066581,17/08/2023,EST0335927,213.54,N,,N,N
Pendle Borough Council,Property Services,Capital Costs,Capital: Construction: Conversion/Refu,CD57,SPEAKMAN CONTRACTORS LTD,A0066581,17/08/2023,EST0335928,1275.13,N,,N,N
Pendle Borough Council,Property Services,Premises Related Expense,Grounds : R & M : Day to Day : Routine,2101,LIVESEY BUILDING MAINTENANCE CONTRACTORS,A0066865,24/08/2023,EST0336133,100,N,,N,N
Pendle Borough Council,Property Services,Premises Related Expense,Grounds : R & M : Day to Day : Routine,2101,LIVESEY BUILDING MAINTENANCE CONTRACTORS,A0066865,24/08/2023,EST0336133,280,N,,N,N
Pendle Borough Council,Property Services,Premises Related Expense,Grounds : R & M : Day to Day : Routine,2101,LIVESEY BUILDING MAINTENANCE CONTRACTORS,A0066865,24/08/2023,EST0336134,55,N,,N,N
Pendle Borough Council,Property Services,Premises Related Expense,Grounds : R & M : Day to Day : Routine,2101,LIVESEY BUILDING MAINTENANCE CONTRACTORS,A0066865,24/08/2023,EST0336134,290,N,,N,N
Pendle Borough Council,Property Services,Premises Related Expense,Grounds : R & M : Day to Day : Routine,2101,LIVESEY BUILDING MAINTENANCE CONTRACTORS,A0066865,24/08/2023,EST0336135,18,N,,N,N
Pendle Borough Council,Property Services,Premises Related Expense,Grounds : R & M : Day to Day : Routine,2101,LIVESEY BUILDING MAINTENANCE CONTRACTORS,A0066865,24/08/2023,EST0336135,140,N,,N,N
Pendle Borough Council,Human Resources,Indirect Employee Expenses,Emp : Medical Expenses,1236,PEOPLE ASSET MANAGEMENT LIMITED,A0067613,03/08/2023,PER0335618,142.5,N,,N,N
Pendle Borough Council,Human Resources,Indirect Employee Expenses,Emp : Medical Expenses,1236,PEOPLE ASSET MANAGEMENT LIMITED,A0067613,24/08/2023,PER0336036,142.5,N,,N,N
Pendle Borough Council,Economic Growth,Supplies and Services,LCC Levy (Admins Costs),4419,PATROL,A0067663,03/08/2023,ECO0335659,55.2,N,,N,N
Pendle Borough Council,Economic Growth,Supplies and Services,#N/A,4424,CHIPSIDE LTD,A0068587,17/08/2023,ECO0335872,11.34,N,,N,N
Pendle Borough Council,Economic Growth,Supplies and Services,#N/A,4424,CHIPSIDE LTD,A0068587,17/08/2023,ECO0335952,225.57,N,,N,N
Pendle Borough Council,"Planning, Building Control & Regulatory Services",Supplies and Services,EFM : Other Equipment,4003,ID MANAGEMENT SYSTEMS,A0069768,17/08/2023,PBC0335859,840.45,N,,N,N
Pendle Borough Council,"Planning, Building Control & Regulatory Services",Supplies and Services,EFM : Other Equipment,4003,ID MANAGEMENT SYSTEMS,A0069768,17/08/2023,PBC4006734,-185.3,N,,N,N
Pendle Borough Council,"Planning, Building Control & Regulatory Services",Supplies and Services,EFM : Other Equipment,4003,ID MANAGEMENT SYSTEMS,A0069768,17/08/2023,PBC4006734,-92.65,N,,N,N
Pendle Borough Council,Operational Services,Transport Related Expense,Tprt : Repairs : General,3105,GUY MACHINERY LIMITED,A0070711,17/08/2023,OPS0335919,94.58,N,,N,N
Pendle Borough Council,Operational Services,Transport Related Expense,Tprt : Repairs : General,3105,GUY MACHINERY LIMITED,A0070711,17/08/2023,OPS0335919,945.83,N,,N,N
Pendle Borough Council,Operational Services,Transport Related Expense,Tprt : Repairs : General,3105,GUY MACHINERY LIMITED,A0070711,10/08/2023,OPS0335756,64.49,N,,N,N
Pendle Borough Council,Operational Services,Transport Related Expense,Tprt : Repairs : General,3105,GUY MACHINERY LIMITED,A0070711,10/08/2023,OPS0335756,644.89,N,,N,N
Pendle Borough Council,Economic Growth,Supplies and Services,NPA`s (National Prking Adjudication),4420,TRAFFIC ENFORCEMENT CENTRE,A0072097,17/08/2023,ECO0335873,500,N,,N,N
Pendle Borough Council,Operational Services,Supplies and Services,Sub-Contractors,4007,RENTOKIL INITIAL UK LIMITED,A0072816,24/08/2023,OPS4006727,-61.44,N,,N,N
Pendle Borough Council,Operational Services,Supplies and Services,Sub-Contractors,4007,RENTOKIL INITIAL UK LIMITED,A0072816,24/08/2023,OPS4006726,-25.11,N,,N,N
Pendle Borough Council,Operational Services,Supplies and Services,Sub-Contractors,4007,RENTOKIL INITIAL UK LIMITED,A0072816,24/08/2023,OPS0336072,277.33,N,,N,N
Pendle Borough Council,Operational Services,Supplies and Services,Sub-Contractors,4007,RENTOKIL INITIAL UK LIMITED,A0072816,24/08/2023,OPS4006727,-10.88,N,,N,N
Pendle Borough Council,Operational Services,Supplies and Services,Sub-Contractors,4007,RENTOKIL INITIAL UK LIMITED,A0072816,24/08/2023,OPS0335371,5.77,N,,N,N
Pendle Borough Council,Operational Services,Supplies and Services,Sub-Contractors,4007,RENTOKIL INITIAL UK LIMITED,A0072816,24/08/2023,OPS0336071,5.77,N,,N,N
Pendle Borough Council,Operational Services,Supplies and Services,Sub-Contractors,4007,RENTOKIL INITIAL UK LIMITED,A0072816,24/08/2023,OPS0336072,53.97,N,,N,N
Pendle Borough Council,Operational Services,Supplies and Services,Sub-Contractors,4007,RENTOKIL INITIAL UK LIMITED,A0072816,24/08/2023,OPS0336071,83.76,N,,N,N
Pendle Borough Council,Operational Services,Supplies and Services,Sub-Contractors,4007,RENTOKIL INITIAL UK LIMITED,A0072816,24/08/2023,OPS0335371,83.76,N,,N,N
Pendle Borough Council,Operational Services,Premises Related Expense,Grounds : R & M : Day to Day : Routine,2101,FENLAND LEISURE PRODUCTS LIMITED,A0072950,10/08/2023,OPS0335769,678.4,N,,N,N
Pendle Borough Council,Operational Services,Premises Related Expense,Grounds : R & M : Day to Day : Routine,2101,BRAMM,A0073376,31/08/2023,OPS0336189,145,N,,N,N
Pendle Borough Council,Legal & Democratic Services,Supplies and Services,Printing & Stationery,4301,THOMSON REUTERS PROFESSIONAL UK LIMITED,A0077400,10/08/2023,LAD0335732,343,N,,N,N
Pendle Borough Council,Legal & Democratic Services,Supplies and Services,Printing & Stationery,4301,THOMSON REUTERS PROFESSIONAL UK LIMITED,A0077400,10/08/2023,LAD0335753,1153.95,N,,N,N
Pendle Borough Council,Operational Services,Supplies and Services,EFM : Other Equipment,4003,GLASDON UK LIMITED,A0078667,10/08/2023,OPS0335741,2313.6,N,,N,N
Pendle Borough Council,Policy & Commissioning,Supplies and Services,Consultants Fees,4401,IN-SITU,A0079936,10/08/2023,POL0335713,18696.35,N,,N,N
Pendle Borough Council,Economic Growth,Premises Related Expense,Bldgs : R & M : Day To Day,2001,KELBROOK AND SOUGH VILLAGE HALL,A0081339,31/08/2023,ECO0336220,375,N,1101005,N,N
Pendle Borough Council,Economic Growth,Premises Related Expense,Bldgs : R & M : Day To Day,2001,KELBROOK AND SOUGH VILLAGE HALL,A0081339,31/08/2023,ECO0336220,375,N,1101005,N,N
Pendle Borough Council,Economic Growth,Supplies and Services,Other Expenses,4705,KELBROOK AND SOUGH VILLAGE HALL,A0081339,31/08/2023,ECO0336220,850,N,1101005,N,N
Pendle Borough Council,Operational Services,Transport Related Expense,Diesel Oil,3202,TATE FUEL OILS LIMITED,A0082819,24/08/2023,OPS0336045,1967.85,N,,N,N
Pendle Borough Council,Housing & Environmental Health,Supplies and Services,Other Expenses,4705,BLACKO PARISH COUNCIL,A0084321,17/08/2023,HEH0335846,3000,N,,N,N
Pendle Borough Council,Finance,Supplies and Services,Allpay,4422,ALLPAY LIMITED,A0084372,10/08/2023,FIN0335796,10,N,,N,N
Pendle Borough Council,Finance,Supplies and Services,Allpay,4422,ALLPAY LIMITED,A0084372,10/08/2023,FIN0335795,18.17,N,,N,N
Pendle Borough Council,Finance,Supplies and Services,Allpay,4422,ALLPAY LIMITED,A0084372,10/08/2023,FIN0335792,18.52,N,,N,N
Pendle Borough Council,Finance,Supplies and Services,Allpay,4422,ALLPAY LIMITED,A0084372,10/08/2023,FIN0335793,25.42,N,,N,N
Pendle Borough Council,Finance,Supplies and Services,Allpay,4422,ALLPAY LIMITED,A0084372,10/08/2023,FIN0335791,58.31,N,,N,N
Pendle Borough Council,Finance,Supplies and Services,Allpay,4422,ALLPAY LIMITED,A0084372,10/08/2023,FIN0335794,1993.69,N,,N,N
Pendle Borough Council,Housing & Environmental Health,,Housing Impts/Cap Repairs,0104,ELITE PLUMBING,A0084584,03/08/2023,HEH0335592,1600,N,,N,N
Pendle Borough Council,Housing & Environmental Health,,Housing Impts/Cap Repairs,0104,ELITE PLUMBING,A0084584,10/08/2023,HEH0335717,3200,N,,N,N
Pendle Borough Council,Housing & Environmental Health,,Housing Impts/Cap Repairs,0104,ELITE PLUMBING,A0084584,03/08/2023,HEH0335593,4350,N,,N,N
Pendle Borough Council,Housing & Environmental Health,,Housing Impts/Cap Repairs,0104,ELITE PLUMBING,A0084584,03/08/2023,HEH0335017,4900,N,,N,N
Pendle Borough Council,Finance,Premises Related Expense,Bldgs : R & M : Abnormal,2002,ELITE PLUMBING,A0084584,10/08/2023,FIN4006732,-5600,N,,N,N
Pendle Borough Council,Housing & Environmental Health,Premises Related Expense,Bldgs : R & M : Abnormal,2002,ELITE PLUMBING,A0084584,03/08/2023,HEH0335029,60,N,,N,N
Pendle Borough Council,Housing & Environmental Health,Premises Related Expense,Bldgs : R & M : Abnormal,2002,ELITE PLUMBING,A0084584,10/08/2023,HEH0335718,60,N,,N,N
Pendle Borough Council,Housing & Environmental Health,Premises Related Expense,Bldgs : R & M : Abnormal,2002,ELITE PLUMBING,A0084584,03/08/2023,HEH0335024,200,N,,N,N
Pendle Borough Council,Housing & Environmental Health,Premises Related Expense,Bldgs : R & M : Abnormal,2002,ELITE PLUMBING,A0084584,17/08/2023,HEH0335844,350,N,,N,N
Pendle Borough Council,Housing & Environmental Health,Premises Related Expense,Bldgs : R & M : Abnormal,2002,ELITE PLUMBING,A0084584,03/08/2023,HEH0335027,450,N,,N,N
Pendle Borough Council,Housing & Environmental Health,Premises Related Expense,Bldgs : R & M : Abnormal,2002,ELITE PLUMBING,A0084584,17/08/2023,HEH0335843,700,N,,N,N
Pendle Borough Council,Housing & Environmental Health,Premises Related Expense,Bldgs : R & M : Abnormal,2002,ELITE PLUMBING,A0084584,03/08/2023,HEH0335026,5600,N,,N,N
Pendle Borough Council,Finance,Premises Related Expense,Bldgs : R & M : Abnormal,2002,ELITE PLUMBING,A0084584,10/08/2023,FIN0335711,5600,N,,N,N
Pendle Borough Council,Housing & Environmental Health,Supplies and Services,Other Expenses,4705,ELITE PLUMBING,A0084584,10/08/2023,HEH0335715,220,N,,N,N
Pendle Borough Council,Housing & Environmental Health,Capital Costs,Ren Grant : 1996 Act,CH22,ELITE PLUMBING,A0084584,03/08/2023,HEH0335597,500,N,,N,N
Pendle Borough Council,Housing & Environmental Health,Capital Costs,Ren Grant : 1996 Act,CH22,ELITE PLUMBING,A0084584,17/08/2023,HEH0335901,3250,N,,N,N
Pendle Borough Council,Housing & Environmental Health,Capital Costs,Ren Grant : 1996 Act,CH22,ELITE PLUMBING,A0084584,17/08/2023,HEH0335900,4900,N,,N,N
Pendle Borough Council,Housing & Environmental Health,Capital Costs,Ren Grant : 1996 Act,CH22,ELITE PLUMBING,A0084584,17/08/2023,HEH0335899,7663.4,N,,N,N
Pendle Borough Council,Housing & Environmental Health,Capital Costs,Ren Grant : 1996 Act,CH22,ELITE PLUMBING,A0084584,24/08/2023,HEH0336069,14544.6,N,,N,N
Pendle Borough Council,Policy & Commissioning,Supplies and Services,Other Expenses,4705,REDACT - PERSONAL DATA,A0085472,10/08/2023,POL0335714,155.64,N,,N,N
Pendle Borough Council,Economic Growth,Premises Related Expense,Grounds : R & M : Day to Day : Routine,2101,KEVIN WILKINSON LANDSCAPES LTD,A0085660,17/08/2023,ECO0335963,675,N,,N,N
Pendle Borough Council,"Planning, Building Control & Regulatory Services",Supplies and Services,EFM : Other Equipment,4003,CTS TRAFFIC & TRANSPORTATION LTD,A0087278,31/08/2023,PBC0336164,3234,N,,N,N
Pendle Borough Council,Property Services,Premises Related Expense,Bldgs : R & M : Day To Day,2001,CATCHPOINT (UK) LIMITED,A0089500,24/08/2023,EST0336115,65,N,,N,N
Pendle Borough Council,Property Services,Premises Related Expense,Bldgs : R & M : Day To Day,2001,CATCHPOINT (UK) LIMITED,A0089500,17/08/2023,EST0335937,103,N,,N,N
Pendle Borough Council,Property Services,Premises Related Expense,Bldgs : R & M : Day To Day,2001,CATCHPOINT (UK) LIMITED,A0089500,24/08/2023,EST0336112,160,N,,N,N
Pendle Borough Council,Property Services,Premises Related Expense,Bldgs : R & M : Day To Day,2001,CATCHPOINT (UK) LIMITED,A0089500,10/08/2023,EST0335806,95,N,,N,N
Pendle Borough Council,Property Services,Premises Related Expense,Bldgs : R & M : Day To Day,2001,CATCHPOINT (UK) LIMITED,A0089500,24/08/2023,EST0336111,160,N,,N,N
Pendle Borough Council,Property Services,Premises Related Expense,Bldgs : R & M : Day To Day,2001,CATCHPOINT (UK) LIMITED,A0089500,24/08/2023,EST0336114,190,N,,N,N
Pendle Borough Council,Property Services,Premises Related Expense,Bldgs : R & M : Day To Day,2001,CATCHPOINT (UK) LIMITED,A0089500,24/08/2023,EST0336110,160,N,,N,N
Pendle Borough Council,Property Services,Premises Related Expense,Bldgs : R & M : Day To Day,2001,CATCHPOINT (UK) LIMITED,A0089500,10/08/2023,EST0335808,65,N,,N,N
Pendle Borough Council,Property Services,Premises Related Expense,Bldgs : R & M : Day To Day,2001,CATCHPOINT (UK) LIMITED,A0089500,10/08/2023,EST0335807,103,N,,N,N
Pendle Borough Council,Property Services,Premises Related Expense,Bldgs : R & M : Day To Day,2001,CATCHPOINT (UK) LIMITED,A0089500,24/08/2023,EST0336113,999.1,N,,N,N
Pendle Borough Council,Property Services,,Other Income : VATable,9203,AGE UK LANCASHIRE,A0089644,03/08/2023,EST0335663,387.02,N,1142294,N,N
Pendle Borough Council,Revenues Services,Supplies and Services,Subscriptions & Donations,4706,INFORM CPI LIMITED,A0089895,03/08/2023,TRE0335656,495,N,,N,N
Pendle Borough Council,Property Services,Premises Related Expense,Bldgs : R & M : Day To Day,2001,LIGHTNING CONSULTANTS (UK) LIMITED,A0089984,10/08/2023,EST0335805,250,N,,N,N
Pendle Borough Council,Property Services,Premises Related Expense,Bldgs : R & M : Day To Day,2001,LIGHTNING CONSULTANTS (UK) LIMITED,A0089984,10/08/2023,EST0335804,250,N,,N,N
Pendle Borough Council,Housing & Environmental Health,Supplies and Services,Other Expenses,4705,ULTIMATE PROPERTY SOLUTIONS,A0090032,03/08/2023,HEH0335356,600,N,,N,N
Pendle Borough Council,Policy & Commissioning,Supplies and Services,Publicity & advertisement,4704,WE LOVE CREATIVE LIMITED,A0090098,03/08/2023,POL0335677,400,N,,N,N
Pendle Borough Council,Policy & Commissioning,Supplies and Services,Publicity & advertisement,4704,WE LOVE CREATIVE LIMITED,A0090098,03/08/2023,POL0335676,400,N,,N,N
Pendle Borough Council,Operational Services,Premises Related Expense,Grounds : R & M : Day to Day : Routine,2101,MARTIN LEE,A0090177,10/08/2023,OPS0335773,590.5,N,,N,N
Pendle Borough Council,Operational Services,Premises Related Expense,Grounds : R & M : Day to Day : Routine,2101,MARTIN LEE,A0090177,10/08/2023,OPS0335773,613,N,,N,N
Pendle Borough Council,Operational Services,Supplies and Services,Sub-Contractors,4007,LANDSCAPE SUPPLY COMPANY,A0090209,31/08/2023,OPS0336169,149.25,N,,N,N
Pendle Borough Council,Finance,Transport Related Expense,Diesel Oil,3202,FUELMATE LTD,A0090265,29/08/2023,FIN0336280,121.7,N,,N,N
Pendle Borough Council,Finance,Transport Related Expense,Diesel Oil,3202,FUELMATE LTD,A0090265,15/08/2023,FIN0336278,204.9,N,,N,N
Pendle Borough Council,Finance,Transport Related Expense,Diesel Oil,3202,FUELMATE LTD,A0090265,08/08/2023,FIN0336277,267.91,N,,N,N
Pendle Borough Council,Finance,Transport Related Expense,Diesel Oil,3202,FUELMATE LTD,A0090265,29/08/2023,FIN0336280,291.22,N,,N,N
Pendle Borough Council,Finance,Transport Related Expense,Diesel Oil,3202,FUELMATE LTD,A0090265,01/08/2023,FIN0336276,291.63,N,,N,N
Pendle Borough Council,Finance,Transport Related Expense,Diesel Oil,3202,FUELMATE LTD,A0090265,22/08/2023,FIN0336279,456.55,N,,N,N
Pendle Borough Council,Finance,Transport Related Expense,Diesel Oil,3202,FUELMATE LTD,A0090265,15/08/2023,FIN0336278,228.31,N,,N,N
Pendle Borough Council,Finance,Transport Related Expense,Diesel Oil,3202,FUELMATE LTD,A0090265,01/08/2023,FIN0336276,261.47,N,,N,N
Pendle Borough Council,Finance,Transport Related Expense,Diesel Oil,3202,FUELMATE LTD,A0090265,08/08/2023,FIN0336277,274.93,N,,N,N
Pendle Borough Council,Finance,Transport Related Expense,Diesel Oil,3202,FUELMATE LTD,A0090265,29/08/2023,FIN0336280,285.41,N,,N,N
Pendle Borough Council,Finance,Transport Related Expense,Diesel Oil,3202,FUELMATE LTD,A0090265,22/08/2023,FIN0336279,320.6,N,,N,N
Pendle Borough Council,Finance,Transport Related Expense,Diesel Oil,3202,FUELMATE LTD,A0090265,15/08/2023,FIN0336278,188.94,N,,N,N
Pendle Borough Council,Finance,Transport Related Expense,Diesel Oil,3202,FUELMATE LTD,A0090265,01/08/2023,FIN0336276,249.21,N,,N,N
Pendle Borough Council,Finance,Transport Related Expense,Diesel Oil,3202,FUELMATE LTD,A0090265,29/08/2023,FIN0336280,251.76,N,,N,N
Pendle Borough Council,Finance,Transport Related Expense,Diesel Oil,3202,FUELMATE LTD,A0090265,08/08/2023,FIN0336277,358.98,N,,N,N
Pendle Borough Council,Finance,Transport Related Expense,Diesel Oil,3202,FUELMATE LTD,A0090265,22/08/2023,FIN0336279,421.16,N,,N,N
Pendle Borough Council,Finance,Transport Related Expense,Diesel Oil,3202,FUELMATE LTD,A0090265,15/08/2023,FIN0336278,223.81,N,,N,N
Pendle Borough Council,Finance,Transport Related Expense,Diesel Oil,3202,FUELMATE LTD,A0090265,29/08/2023,FIN0336280,249.46,N,,N,N
Pendle Borough Council,Finance,Transport Related Expense,Diesel Oil,3202,FUELMATE LTD,A0090265,01/08/2023,FIN0336276,264.78,N,,N,N
Pendle Borough Council,Finance,Transport Related Expense,Diesel Oil,3202,FUELMATE LTD,A0090265,08/08/2023,FIN0336277,271.13,N,,N,N
Pendle Borough Council,Finance,Transport Related Expense,Diesel Oil,3202,FUELMATE LTD,A0090265,22/08/2023,FIN0336279,336.9,N,,N,N
Pendle Borough Council,Finance,Transport Related Expense,Diesel Oil,3202,FUELMATE LTD,A0090265,15/08/2023,FIN0336278,232.1,N,,N,N
Pendle Borough Council,Finance,Transport Related Expense,Diesel Oil,3202,FUELMATE LTD,A0090265,29/08/2023,FIN0336280,251,N,,N,N
Pendle Borough Council,Finance,Transport Related Expense,Diesel Oil,3202,FUELMATE LTD,A0090265,01/08/2023,FIN0336276,330.97,N,,N,N
Pendle Borough Council,Finance,Transport Related Expense,Diesel Oil,3202,FUELMATE LTD,A0090265,08/08/2023,FIN0336277,358.44,N,,N,N
Pendle Borough Council,Finance,Transport Related Expense,Diesel Oil,3202,FUELMATE LTD,A0090265,22/08/2023,FIN0336279,390.28,N,,N,N
Pendle Borough Council,Finance,Transport Related Expense,Diesel Oil,3202,FUELMATE LTD,A0090265,08/08/2023,FIN0336277,164.88,N,,N,N
Pendle Borough Council,Finance,Transport Related Expense,Diesel Oil,3202,FUELMATE LTD,A0090265,29/08/2023,FIN0336280,186.53,N,,N,N
Pendle Borough Council,Finance,Transport Related Expense,Diesel Oil,3202,FUELMATE LTD,A0090265,01/08/2023,FIN0336276,229.97,N,,N,N
Pendle Borough Council,Finance,Transport Related Expense,Diesel Oil,3202,FUELMATE LTD,A0090265,22/08/2023,FIN0336279,250.67,N,,N,N
Pendle Borough Council,Finance,Transport Related Expense,Diesel Oil,3202,FUELMATE LTD,A0090265,15/08/2023,FIN0336278,290.02,N,,N,N
Pendle Borough Council,Finance,Transport Related Expense,Diesel Oil,3202,FUELMATE LTD,A0090265,22/08/2023,FIN0336279,62.68,N,,N,N
Pendle Borough Council,Finance,Transport Related Expense,Diesel Oil,3202,FUELMATE LTD,A0090265,01/08/2023,FIN0336276,67.37,N,,N,N
Pendle Borough Council,Finance,Transport Related Expense,Diesel Oil,3202,FUELMATE LTD,A0090265,15/08/2023,FIN0336278,75.22,N,,N,N
Pendle Borough Council,Finance,Transport Related Expense,Diesel Oil,3202,FUELMATE LTD,A0090265,29/08/2023,FIN0336280,99.3,N,,N,N
Pendle Borough Council,Finance,Transport Related Expense,Diesel Oil,3202,FUELMATE LTD,A0090265,01/08/2023,FIN0336276,202.88,N,,N,N
Pendle Borough Council,Finance,Transport Related Expense,Diesel Oil,3202,FUELMATE LTD,A0090265,15/08/2023,FIN0336278,203.51,N,,N,N
Pendle Borough Council,Finance,Transport Related Expense,Diesel Oil,3202,FUELMATE LTD,A0090265,22/08/2023,FIN0336279,241.8,N,,N,N
Pendle Borough Council,Finance,Transport Related Expense,Diesel Oil,3202,FUELMATE LTD,A0090265,29/08/2023,FIN0336280,260.54,N,,N,N
Pendle Borough Council,Finance,Transport Related Expense,Diesel Oil,3202,FUELMATE LTD,A0090265,08/08/2023,FIN0336277,283.71,N,,N,N
Pendle Borough Council,Finance,Transport Related Expense,Diesel Oil,3202,FUELMATE LTD,A0090265,01/08/2023,FIN0336276,201.63,N,,N,N
Pendle Borough Council,Finance,Transport Related Expense,Diesel Oil,3202,FUELMATE LTD,A0090265,08/08/2023,FIN0336277,203.23,N,,N,N
Pendle Borough Council,Finance,Transport Related Expense,Diesel Oil,3202,FUELMATE LTD,A0090265,15/08/2023,FIN0336278,226.96,N,,N,N
Pendle Borough Council,Finance,Transport Related Expense,Diesel Oil,3202,FUELMATE LTD,A0090265,29/08/2023,FIN0336280,288.11,N,,N,N
Pendle Borough Council,Finance,Transport Related Expense,Diesel Oil,3202,FUELMATE LTD,A0090265,22/08/2023,FIN0336279,351.91,N,,N,N
Pendle Borough Council,Finance,Transport Related Expense,Diesel Oil,3202,FUELMATE LTD,A0090265,01/08/2023,FIN0336276,153.57,N,,N,N
Pendle Borough Council,Finance,Transport Related Expense,Diesel Oil,3202,FUELMATE LTD,A0090265,15/08/2023,FIN0336278,159.74,N,,N,N
Pendle Borough Council,Finance,Transport Related Expense,Diesel Oil,3202,FUELMATE LTD,A0090265,22/08/2023,FIN0336279,162.37,N,,N,N
Pendle Borough Council,Finance,Transport Related Expense,Diesel Oil,3202,FUELMATE LTD,A0090265,08/08/2023,FIN0336277,225.97,N,,N,N
Pendle Borough Council,Finance,Transport Related Expense,Diesel Oil,3202,FUELMATE LTD,A0090265,29/08/2023,FIN0336280,242.75,N,,N,N
Pendle Borough Council,Finance,Transport Related Expense,Diesel Oil,3202,FUELMATE LTD,A0090265,01/08/2023,FIN0336276,180.55,N,,N,N
Pendle Borough Council,Finance,Transport Related Expense,Diesel Oil,3202,FUELMATE LTD,A0090265,15/08/2023,FIN0336278,222.45,N,,N,N
Pendle Borough Council,Finance,Transport Related Expense,Diesel Oil,3202,FUELMATE LTD,A0090265,22/08/2023,FIN0336279,241.84,N,,N,N
Pendle Borough Council,Finance,Transport Related Expense,Diesel Oil,3202,FUELMATE LTD,A0090265,29/08/2023,FIN0336280,253.08,N,,N,N
Pendle Borough Council,Finance,Transport Related Expense,Diesel Oil,3202,FUELMATE LTD,A0090265,08/08/2023,FIN0336277,280.49,N,,N,N
Pendle Borough Council,Finance,Transport Related Expense,Diesel Oil,3202,FUELMATE LTD,A0090265,29/08/2023,FIN0336280,76.75,N,,N,N
Pendle Borough Council,Finance,Transport Related Expense,Diesel Oil,3202,FUELMATE LTD,A0090265,15/08/2023,FIN0336278,113.02,N,,N,N
Pendle Borough Council,Finance,Transport Related Expense,Diesel Oil,3202,FUELMATE LTD,A0090265,08/08/2023,FIN0336277,135.95,N,,N,N
Pendle Borough Council,Finance,Transport Related Expense,Diesel Oil,3202,FUELMATE LTD,A0090265,08/08/2023,FIN0336277,180.85,N,,N,N
Pendle Borough Council,Finance,Transport Related Expense,Diesel Oil,3202,FUELMATE LTD,A0090265,15/08/2023,FIN0336278,204.7,N,,N,N
Pendle Borough Council,Finance,Transport Related Expense,Diesel Oil,3202,FUELMATE LTD,A0090265,01/08/2023,FIN0336276,216.15,N,,N,N
Pendle Borough Council,Finance,Transport Related Expense,Diesel Oil,3202,FUELMATE LTD,A0090265,22/08/2023,FIN0336279,383.34,N,,N,N
Pendle Borough Council,Finance,Transport Related Expense,Diesel Oil,3202,FUELMATE LTD,A0090265,29/08/2023,FIN0336280,410.02,N,,N,N
Pendle Borough Council,Finance,Transport Related Expense,Diesel Oil,3202,FUELMATE LTD,A0090265,22/08/2023,FIN0336279,194.69,N,,N,N
Pendle Borough Council,Finance,Transport Related Expense,Diesel Oil,3202,FUELMATE LTD,A0090265,01/08/2023,FIN0336276,198.88,N,,N,N
Pendle Borough Council,Finance,Transport Related Expense,Diesel Oil,3202,FUELMATE LTD,A0090265,08/08/2023,FIN0336277,202.58,N,,N,N
Pendle Borough Council,Finance,Transport Related Expense,Diesel Oil,3202,FUELMATE LTD,A0090265,29/08/2023,FIN0336280,206.21,N,,N,N
Pendle Borough Council,Finance,Transport Related Expense,Diesel Oil,3202,FUELMATE LTD,A0090265,15/08/2023,FIN0336278,215.32,N,,N,N
Pendle Borough Council,Finance,Transport Related Expense,Diesel Oil,3202,FUELMATE LTD,A0090265,01/08/2023,FIN0336276,38.35,N,,N,N
Pendle Borough Council,Finance,Transport Related Expense,Diesel Oil,3202,FUELMATE LTD,A0090265,15/08/2023,FIN0336278,170.11,N,,N,N
Pendle Borough Council,Finance,Transport Related Expense,Diesel Oil,3202,FUELMATE LTD,A0090265,22/08/2023,FIN0336279,175.65,N,,N,N
Pendle Borough Council,Finance,Transport Related Expense,Diesel Oil,3202,FUELMATE LTD,A0090265,08/08/2023,FIN0336277,180.72,N,,N,N
Pendle Borough Council,Finance,Transport Related Expense,Diesel Oil,3202,FUELMATE LTD,A0090265,29/08/2023,FIN0336280,187.84,N,,N,N
Pendle Borough Council,Finance,Transport Related Expense,Diesel Oil,3202,FUELMATE LTD,A0090265,22/08/2023,FIN0336279,131.25,N,,N,N
Pendle Borough Council,Finance,Transport Related Expense,Diesel Oil,3202,FUELMATE LTD,A0090265,01/08/2023,FIN0336276,144.77,N,,N,N
Pendle Borough Council,Finance,Transport Related Expense,Diesel Oil,3202,FUELMATE LTD,A0090265,15/08/2023,FIN0336278,162.75,N,,N,N
Pendle Borough Council,Finance,Transport Related Expense,Diesel Oil,3202,FUELMATE LTD,A0090265,08/08/2023,FIN0336277,164.22,N,,N,N
Pendle Borough Council,Finance,Transport Related Expense,Diesel Oil,3202,FUELMATE LTD,A0090265,29/08/2023,FIN0336280,171.1,N,,N,N
Pendle Borough Council,Finance,Transport Related Expense,Diesel Oil,3202,FUELMATE LTD,A0090265,15/08/2023,FIN0336278,95.2,N,,N,N
Pendle Borough Council,Finance,Transport Related Expense,Diesel Oil,3202,FUELMATE LTD,A0090265,08/08/2023,FIN0336277,100.68,N,,N,N
Pendle Borough Council,Finance,Transport Related Expense,Diesel Oil,3202,FUELMATE LTD,A0090265,01/08/2023,FIN0336276,106.48,N,,N,N
Pendle Borough Council,Finance,Transport Related Expense,Diesel Oil,3202,FUELMATE LTD,A0090265,29/08/2023,FIN0336280,119.33,N,,N,N
Pendle Borough Council,Finance,Transport Related Expense,Diesel Oil,3202,FUELMATE LTD,A0090265,22/08/2023,FIN0336279,177.35,N,,N,N
Pendle Borough Council,Finance,Transport Related Expense,Diesel Oil,3202,FUELMATE LTD,A0090265,01/08/2023,FIN0336276,49.68,N,,N,N
Pendle Borough Council,Finance,Transport Related Expense,Diesel Oil,3202,FUELMATE LTD,A0090265,08/08/2023,FIN0336277,60.11,N,,N,N
Pendle Borough Council,Finance,Transport Related Expense,Diesel Oil,3202,FUELMATE LTD,A0090265,22/08/2023,FIN0336279,66.04,N,,N,N
Pendle Borough Council,Finance,Transport Related Expense,Diesel Oil,3202,FUELMATE LTD,A0090265,29/08/2023,FIN0336280,95.11,N,,N,N
Pendle Borough Council,Finance,Transport Related Expense,Diesel Oil,3202,FUELMATE LTD,A0090265,15/08/2023,FIN0336278,159.79,N,,N,N
Pendle Borough Council,Finance,Transport Related Expense,Diesel Oil,3202,FUELMATE LTD,A0090265,08/08/2023,FIN0336277,44.82,N,,N,N
Pendle Borough Council,Finance,Transport Related Expense,Diesel Oil,3202,FUELMATE LTD,A0090265,15/08/2023,FIN0336278,45.72,N,,N,N
Pendle Borough Council,Finance,Transport Related Expense,Diesel Oil,3202,FUELMATE LTD,A0090265,01/08/2023,FIN0336276,45.95,N,,N,N
Pendle Borough Council,Finance,Transport Related Expense,Diesel Oil,3202,FUELMATE LTD,A0090265,29/08/2023,FIN0336280,46.74,N,,N,N
Pendle Borough Council,Finance,Transport Related Expense,Diesel Oil,3202,FUELMATE LTD,A0090265,22/08/2023,FIN0336279,75.85,N,,N,N
Pendle Borough Council,Finance,Transport Related Expense,Diesel Oil,3202,FUELMATE LTD,A0090265,22/08/2023,FIN0336279,54.45,N,,N,N
Pendle Borough Council,Finance,Transport Related Expense,Diesel Oil,3202,FUELMATE LTD,A0090265,01/08/2023,FIN0336276,88.79,N,,N,N
Pendle Borough Council,Finance,Transport Related Expense,Diesel Oil,3202,FUELMATE LTD,A0090265,08/08/2023,FIN0336277,70.82,N,,N,N
Pendle Borough Council,Finance,Transport Related Expense,Diesel Oil,3202,FUELMATE LTD,A0090265,22/08/2023,FIN0336279,74.71,N,,N,N
Pendle Borough Council,Finance,Transport Related Expense,Diesel Oil,3202,FUELMATE LTD,A0090265,29/08/2023,FIN0336280,64,N,,N,N
Pendle Borough Council,Finance,Transport Related Expense,Diesel Oil,3202,FUELMATE LTD,A0090265,15/08/2023,FIN0336278,73.74,N,,N,N
Pendle Borough Council,Finance,Transport Related Expense,Diesel Oil,3202,FUELMATE LTD,A0090265,08/08/2023,FIN0336277,53.33,N,,N,N
Pendle Borough Council,Finance,Transport Related Expense,Diesel Oil,3202,FUELMATE LTD,A0090265,01/08/2023,FIN0336276,58.95,N,,N,N
Pendle Borough Council,Finance,Transport Related Expense,Diesel Oil,3202,FUELMATE LTD,A0090265,22/08/2023,FIN0336279,60.11,N,,N,N
Pendle Borough Council,Finance,Transport Related Expense,Diesel Oil,3202,FUELMATE LTD,A0090265,29/08/2023,FIN0336280,65.16,N,,N,N
Pendle Borough Council,Finance,Transport Related Expense,Diesel Oil,3202,FUELMATE LTD,A0090265,15/08/2023,FIN0336278,68.02,N,,N,N
Pendle Borough Council,Finance,Transport Related Expense,Diesel Oil,3202,FUELMATE LTD,A0090265,08/08/2023,FIN0336277,120.01,N,,N,N
Pendle Borough Council,Finance,Transport Related Expense,Diesel Oil,3202,FUELMATE LTD,A0090265,15/08/2023,FIN0336278,58.37,N,,N,N
Pendle Borough Council,Finance,Transport Related Expense,Diesel Oil,3202,FUELMATE LTD,A0090265,29/08/2023,FIN0336280,67.44,N,,N,N
Pendle Borough Council,Finance,Transport Related Expense,Diesel Oil,3202,FUELMATE LTD,A0090265,08/08/2023,FIN0336277,89.67,N,,N,N
Pendle Borough Council,Finance,Transport Related Expense,Diesel Oil,3202,FUELMATE LTD,A0090265,22/08/2023,FIN0336279,106.72,N,,N,N
Pendle Borough Council,Finance,Transport Related Expense,Diesel Oil,3202,FUELMATE LTD,A0090265,01/08/2023,FIN0336276,133.51,N,,N,N
Pendle Borough Council,Finance,Transport Related Expense,Diesel Oil,3202,FUELMATE LTD,A0090265,29/08/2023,FIN0336280,49.57,N,,N,N
Pendle Borough Council,Finance,Transport Related Expense,Diesel Oil,3202,FUELMATE LTD,A0090265,01/08/2023,FIN0336276,53.15,N,,N,N
Pendle Borough Council,Finance,Transport Related Expense,Diesel Oil,3202,FUELMATE LTD,A0090265,15/08/2023,FIN0336278,55.18,N,,N,N
Pendle Borough Council,Finance,Transport Related Expense,Diesel Oil,3202,FUELMATE LTD,A0090265,08/08/2023,FIN0336277,57.06,N,,N,N
Pendle Borough Council,Finance,Transport Related Expense,Diesel Oil,3202,FUELMATE LTD,A0090265,22/08/2023,FIN0336279,74.46,N,,N,N
Pendle Borough Council,Finance,Transport Related Expense,Diesel Oil,3202,FUELMATE LTD,A0090265,22/08/2023,FIN0336279,49.06,N,,N,N
Pendle Borough Council,Finance,Transport Related Expense,Diesel Oil,3202,FUELMATE LTD,A0090265,15/08/2023,FIN0336278,50.61,N,,N,N
Pendle Borough Council,Finance,Transport Related Expense,Diesel Oil,3202,FUELMATE LTD,A0090265,08/08/2023,FIN0336277,52.47,N,,N,N
Pendle Borough Council,Finance,Transport Related Expense,Diesel Oil,3202,FUELMATE LTD,A0090265,01/08/2023,FIN0336276,58.28,N,,N,N
Pendle Borough Council,Finance,Transport Related Expense,Diesel Oil,3202,FUELMATE LTD,A0090265,29/08/2023,FIN0336280,95.23,N,,N,N
Pendle Borough Council,Finance,Transport Related Expense,Diesel Oil,3202,FUELMATE LTD,A0090265,15/08/2023,FIN0336278,52.85,N,,N,N
Pendle Borough Council,Finance,Transport Related Expense,Diesel Oil,3202,FUELMATE LTD,A0090265,01/08/2023,FIN0336276,62.32,N,,N,N
Pendle Borough Council,Finance,Transport Related Expense,Diesel Oil,3202,FUELMATE LTD,A0090265,22/08/2023,FIN0336279,74.33,N,,N,N
Pendle Borough Council,Finance,Transport Related Expense,Diesel Oil,3202,FUELMATE LTD,A0090265,29/08/2023,FIN0336280,124.35,N,,N,N
Pendle Borough Council,Finance,Transport Related Expense,Diesel Oil,3202,FUELMATE LTD,A0090265,08/08/2023,FIN0336277,148.89,N,,N,N
Pendle Borough Council,Finance,Transport Related Expense,Diesel Oil,3202,FUELMATE LTD,A0090265,29/08/2023,FIN0336280,59.49,N,,N,N
Pendle Borough Council,Finance,Transport Related Expense,Diesel Oil,3202,FUELMATE LTD,A0090265,01/08/2023,FIN0336276,59.6,N,,N,N
Pendle Borough Council,Finance,Transport Related Expense,Diesel Oil,3202,FUELMATE LTD,A0090265,22/08/2023,FIN0336279,62.89,N,,N,N
Pendle Borough Council,Finance,Transport Related Expense,Diesel Oil,3202,FUELMATE LTD,A0090265,08/08/2023,FIN0336277,66.04,N,,N,N
Pendle Borough Council,Finance,Transport Related Expense,Diesel Oil,3202,FUELMATE LTD,A0090265,22/08/2023,FIN0336279,47.78,N,,N,N
Pendle Borough Council,Finance,Transport Related Expense,Diesel Oil,3202,FUELMATE LTD,A0090265,15/08/2023,FIN0336278,42.55,N,,N,N
Pendle Borough Council,Finance,Transport Related Expense,Diesel Oil,3202,FUELMATE LTD,A0090265,29/08/2023,FIN0336280,41.38,N,,N,N
Pendle Borough Council,Finance,Transport Related Expense,Diesel Oil,3202,FUELMATE LTD,A0090265,01/08/2023,FIN0336276,42.56,N,,N,N
Pendle Borough Council,Finance,Transport Related Expense,Diesel Oil,3202,FUELMATE LTD,A0090265,01/08/2023,FIN0336276,41.61,N,,N,N
Pendle Borough Council,Finance,Transport Related Expense,Diesel Oil,3202,FUELMATE LTD,A0090265,15/08/2023,FIN0336278,41.77,N,,N,N
Pendle Borough Council,Finance,Transport Related Expense,Diesel Oil,3202,FUELMATE LTD,A0090265,29/08/2023,FIN0336280,42.58,N,,N,N
Pendle Borough Council,Finance,Transport Related Expense,Diesel Oil,3202,FUELMATE LTD,A0090265,15/08/2023,FIN0336278,29.62,N,,N,N
Pendle Borough Council,Finance,Transport Related Expense,Diesel Oil,3202,FUELMATE LTD,A0090265,08/08/2023,FIN0336277,30.65,N,,N,N
Pendle Borough Council,Finance,Transport Related Expense,Diesel Oil,3202,FUELMATE LTD,A0090265,01/08/2023,FIN0336276,42.54,N,,N,N
Pendle Borough Council,Finance,Transport Related Expense,Diesel Oil,3202,FUELMATE LTD,A0090265,22/08/2023,FIN0336279,41.28,N,,N,N
Pendle Borough Council,Finance,Transport Related Expense,Diesel Oil,3202,FUELMATE LTD,A0090265,01/08/2023,FIN0336276,47.32,N,,N,N
Pendle Borough Council,Finance,Transport Related Expense,Diesel Oil,3202,FUELMATE LTD,A0090265,22/08/2023,FIN0336279,54.69,N,,N,N
Pendle Borough Council,Finance,Transport Related Expense,Diesel Oil,3202,FUELMATE LTD,A0090265,08/08/2023,FIN0336277,73.16,N,,N,N
Pendle Borough Council,Finance,Transport Related Expense,Diesel Oil,3202,FUELMATE LTD,A0090265,15/08/2023,FIN0336278,58.16,N,,N,N
Pendle Borough Council,Finance,Transport Related Expense,Diesel Oil,3202,FUELMATE LTD,A0090265,01/08/2023,FIN0336276,59.35,N,,N,N
Pendle Borough Council,Finance,Transport Related Expense,Diesel Oil,3202,FUELMATE LTD,A0090265,22/08/2023,FIN0336279,71.29,N,,N,N
Pendle Borough Council,Finance,Transport Related Expense,Diesel Oil,3202,FUELMATE LTD,A0090265,01/08/2023,FIN0336276,66.41,N,,N,N
Pendle Borough Council,Finance,Transport Related Expense,Diesel Oil,3202,FUELMATE LTD,A0090265,22/08/2023,FIN0336279,50.44,N,,N,N
Pendle Borough Council,Finance,Transport Related Expense,Diesel Oil,3202,FUELMATE LTD,A0090265,08/08/2023,FIN0336277,34.79,N,,N,N
Pendle Borough Council,Finance,Transport Related Expense,Diesel Oil,3202,FUELMATE LTD,A0090265,22/08/2023,FIN0336279,46.17,N,,N,N
Pendle Borough Council,Finance,Transport Related Expense,Diesel Oil,3202,FUELMATE LTD,A0090265,22/08/2023,FIN0336279,117.83,N,,N,N
Pendle Borough Council,Finance,Supplies and Services,Consultants Fees,4401,ACS LTD,A0090312,03/08/2023,FIN0335681,650,N,,N,N
Pendle Borough Council,Operational Services,Supplies and Services,Printing & Stationery,4301,M A E MORRIS T/A A-P DESIGN & PRINT,A0090443,31/08/2023,OPS0336167,682,N,,N,N
Pendle Borough Council,Housing & Environmental Health,Supplies and Services,Other Expenses,4705,HIGHAM WITH WEST CLOSE BOOTH PC,A0090493,24/08/2023,HEH0336030,1000,N,,N,N
Pendle Borough Council,Policy & Commissioning,Supplies and Services,Grant Funding,4737,ST JOHN WITH ST PHILIP PCC,A0090537,03/08/2023,POL0335613,8400,N,,N,N
Pendle Borough Council,Revenues Services,Supplies and Services,DSS Collection Fee,4414,PS&P LTD,A0090720,03/08/2023,TRE0335655,1,N,,N,N
Pendle Borough Council,Revenues Services,Supplies and Services,DSS Collection Fee,4414,PS&P LTD,A0090720,10/08/2023,TRE0335797,2,N,,N,N
Pendle Borough Council,Revenues Services,Supplies and Services,DSS Collection Fee,4414,PS&P LTD,A0090720,03/08/2023,TRE0335654,13.2,N,,N,N
Pendle Borough Council,Revenues Services,Supplies and Services,DSS Collection Fee,4414,PS&P LTD,A0090720,24/08/2023,TRE0336026,20,N,,N,N
Pendle Borough Council,Property Services,Capital Costs,Capital: Construction: Conversion/Refu,CD57,B & E BOYS LIMITED,A0090790,24/08/2023,EST0336117,134142.08,N,,N,N
Pendle Borough Council,Finance,Supplies and Services,Grants/Contributions,4739,CYCLING DEVELOPMENT PENDLE PARTNERSHIP,A0090830,31/08/2023,FIN0336221,2189.22,N,,N,N
Pendle Borough Council,Housing & Environmental Health,Supplies and Services,Other Expenses,4705,TRAWDEN & DISTRICT AGRICULTURAL SOCIETY,A0090914,10/08/2023,HEH0335743,1000,N,,N,N
Pendle Borough Council,Operational Services,Premises Related Expense,Grounds : R & M : Day to Day : Routine,2101,STEPHEN HEAP PENDLE SHOTBLASTING,A0091035,24/08/2023,OPS0336056,1800,N,,N,N
Pendle Borough Council,Operational Services,Premises Related Expense,Grounds : R & M : Day to Day : Routine,2101,STEPHEN HEAP PENDLE SHOTBLASTING,A0091035,24/08/2023,OPS0336056,600,N,,N,N
Pendle Borough Council,Operational Services,Premises Related Expense,Grounds : R & M : Day to Day : Routine,2101,STEPHEN HEAP PENDLE SHOTBLASTING,A0091035,24/08/2023,OPS0336056,600,N,,N,N
Pendle Borough Council,Operational Services,Premises Related Expense,Grounds : R & M : Day to Day : Routine,2101,STEPHEN HEAP PENDLE SHOTBLASTING,A0091035,24/08/2023,OPS0336056,600,N,,N,N
Pendle Borough Council,Operational Services,Premises Related Expense,Grounds : R & M : Day to Day : Routine,2101,STEPHEN HEAP PENDLE SHOTBLASTING,A0091035,24/08/2023,OPS0336056,1000,N,,N,N
Pendle Borough Council,Operational Services,Supplies and Services,Other Expenses,4705,MALLARD CONSULTANCY LIMITED,A0091047,10/08/2023,OPS0335745,999,N,,N,N
Pendle Borough Council,"Planning, Building Control & Regulatory Services",Supplies and Services,Other Expenses,4705,CREATIVE TALENT MANAGEMENT LIMITED,A0091161,03/08/2023,PBC0335678,650,N,,N,N
Pendle Borough Council,Property Services,Premises Related Expense,Bldgs : R & M : Day To Day,2001,LANCASHIRE CLOCKMAKERS LIMITED,A0091189,24/08/2023,EST0336129,3740,N,,N,N
Pendle Borough Council,I.T Services,Supplies and Services,Other Expenses,4705,SOFTCAT,A0091298,24/08/2023,ITS0335965,1622.5,N,,N,N
Pendle Borough Council,I.T Services,Supplies and Services,Other Expenses,4705,SOFTCAT,A0091298,24/08/2023,ITS0335967,2064.32,N,,N,N
Pendle Borough Council,Operational Services,Transport Related Expense,Tprt : Repairs : General,3105,QUARTIX LIMITED,A0091353,24/08/2023,OPS0336089,41.7,N,,N,N
Pendle Borough Council,Operational Services,Transport Related Expense,Tprt : Repairs : General,3105,QUARTIX LIMITED,A0091353,24/08/2023,OPS0336089,41.7,N,,N,N
Pendle Borough Council,Operational Services,Transport Related Expense,Tprt : Repairs : General,3105,QUARTIX LIMITED,A0091353,24/08/2023,OPS0336089,41.7,N,,N,N
Pendle Borough Council,Operational Services,Transport Related Expense,Tprt : Repairs : General,3105,QUARTIX LIMITED,A0091353,24/08/2023,OPS0336089,41.7,N,,N,N
Pendle Borough Council,Operational Services,Transport Related Expense,Tprt : Repairs : General,3105,QUARTIX LIMITED,A0091353,24/08/2023,OPS0336089,41.7,N,,N,N
Pendle Borough Council,Operational Services,Transport Related Expense,Tprt : Repairs : General,3105,QUARTIX LIMITED,A0091353,24/08/2023,OPS0336089,41.7,N,,N,N
Pendle Borough Council,Operational Services,Transport Related Expense,Tprt : Repairs : General,3105,QUARTIX LIMITED,A0091353,24/08/2023,OPS0336089,41.7,N,,N,N
Pendle Borough Council,Operational Services,Transport Related Expense,Tprt : Repairs : General,3105,QUARTIX LIMITED,A0091353,24/08/2023,OPS0336089,41.7,N,,N,N
Pendle Borough Council,Operational Services,Transport Related Expense,Tprt : Repairs : General,3105,QUARTIX LIMITED,A0091353,24/08/2023,OPS0336089,41.7,N,,N,N
Pendle Borough Council,Operational Services,Transport Related Expense,Tprt : Repairs : General,3105,QUARTIX LIMITED,A0091353,24/08/2023,OPS0336089,41.7,N,,N,N
Pendle Borough Council,Operational Services,Transport Related Expense,Tprt : Repairs : General,3105,QUARTIX LIMITED,A0091353,24/08/2023,OPS0336089,41.7,N,,N,N
Pendle Borough Council,Operational Services,Transport Related Expense,Tprt : Repairs : General,3105,QUARTIX LIMITED,A0091353,24/08/2023,OPS0336089,41.7,N,,N,N
Pendle Borough Council,Operational Services,Transport Related Expense,Tprt : Repairs : General,3105,QUARTIX LIMITED,A0091353,24/08/2023,OPS0336089,41.7,N,,N,N
Pendle Borough Council,Operational Services,Transport Related Expense,Tprt : Repairs : General,3105,QUARTIX LIMITED,A0091353,24/08/2023,OPS0336089,41.7,N,,N,N
Pendle Borough Council,Operational Services,Transport Related Expense,Tprt : Repairs : General,3105,QUARTIX LIMITED,A0091353,24/08/2023,OPS0336089,41.7,N,,N,N
Pendle Borough Council,Operational Services,Transport Related Expense,Diesel Oil,3202,WCF LIMITED,A0091385,17/08/2023,OPS0335921,2530,N,,N,N
Pendle Borough Council,Operational Services,Supplies and Services,Sub-Contractors,4007,PERMISERV LIMITED,A0091396,24/08/2023,OPS4006728,-2.91,N,,N,N
Pendle Borough Council,Operational Services,Supplies and Services,Sub-Contractors,4007,PERMISERV LIMITED,A0091396,24/08/2023,OPS0336102,10,N,,N,N
Pendle Borough Council,Operational Services,Supplies and Services,Sub-Contractors,4007,PERMISERV LIMITED,A0091396,24/08/2023,OPS0336102,1055.36,N,,N,N
Pendle Borough Council,I.T Services,Supplies and Services,Computer Charges,4509,STORM TECHNOLOGIES LIMITED,A0091493,24/08/2023,ITS0335972,128,N,,N,N
Pendle Borough Council,I.T Services,Supplies and Services,Computer Charges,4509,STORM TECHNOLOGIES LIMITED,A0091493,24/08/2023,ITS0335966,134,N,,N,N
Pendle Borough Council,Property Services,,Other Income : VATable,9203,LANCASHIRE COUNTY COUNCIL,A0091535,03/08/2023,EST0335661,209.68,N,,N,N
Pendle Borough Council,"Planning, Building Control & Regulatory Services",,Fees Income : Non-VATable,9302,PORTALPLANQUEST LIMITED,A0091554,31/08/2023,PBC0336159,116,N,,N,N
Pendle Borough Council,"Planning, Building Control & Regulatory Services",,Fees Income : Non-VATable,9302,PORTALPLANQUEST LIMITED,A0091554,10/08/2023,PBC0335722,206,N,,N,N
Pendle Borough Council,"Planning, Building Control & Regulatory Services",,Fees Income : Non-VATable,9302,PORTALPLANQUEST LIMITED,A0091554,10/08/2023,PBC0335724,234,N,,N,N
Pendle Borough Council,Operational Services,Agency Staff,Emp : Basic Wages,1001,NW RECRUITMENT SERVICES LIMITED,A0091588,31/08/2023,OPS0336191,4869.87,N,,N,N
Pendle Borough Council,Operational Services,Agency Staff,Emp : Basic Wages,1001,NW RECRUITMENT SERVICES LIMITED,A0091588,10/08/2023,OPS0335765,5128.96,N,,N,N
Pendle Borough Council,Operational Services,Agency Staff,Emp : Basic Wages,1001,NW RECRUITMENT SERVICES LIMITED,A0091588,17/08/2023,OPS0335910,5188.2,N,,N,N
Pendle Borough Council,Operational Services,Agency Staff,Emp : Basic Wages,1001,NW RECRUITMENT SERVICES LIMITED,A0091588,24/08/2023,OPS0336044,5429.65,N,,N,N
Pendle Borough Council,Operational Services,Agency Staff,Emp : Agency Wages,1004,NW RECRUITMENT SERVICES LIMITED,A0091588,31/08/2023,OPS0336180,29.18,N,,N,N
Pendle Borough Council,Operational Services,Agency Staff,Emp : Agency Wages,1004,NW RECRUITMENT SERVICES LIMITED,A0091588,17/08/2023,OPS0335892,3715.48,N,,N,N
Pendle Borough Council,Operational Services,Agency Staff,Emp : Agency Wages,1004,NW RECRUITMENT SERVICES LIMITED,A0091588,31/08/2023,OPS0336172,3848.67,N,,N,N
Pendle Borough Council,Operational Services,Agency Staff,Emp : Agency Wages,1004,NW RECRUITMENT SERVICES LIMITED,A0091588,31/08/2023,OPS0336174,4304.67,N,,N,N
Pendle Borough Council,Operational Services,Agency Staff,Emp : Agency Wages,1004,NW RECRUITMENT SERVICES LIMITED,A0091588,17/08/2023,OPS0335889,4774.23,N,,N,N
Pendle Borough Council,Operational Services,Agency Staff,Emp : Agency Wages,1004,NW RECRUITMENT SERVICES LIMITED,A0091588,31/08/2023,OPS0336174,2291.29,N,,N,N
Pendle Borough Council,Operational Services,Agency Staff,Emp : Agency Wages,1004,NW RECRUITMENT SERVICES LIMITED,A0091588,17/08/2023,OPS0335892,2789.05,N,,N,N
Pendle Borough Council,Operational Services,Agency Staff,Emp : Agency Wages,1004,NW RECRUITMENT SERVICES LIMITED,A0091588,17/08/2023,OPS0335889,2884.15,N,,N,N
Pendle Borough Council,Operational Services,Agency Staff,Emp : Agency Wages,1004,NW RECRUITMENT SERVICES LIMITED,A0091588,31/08/2023,OPS0336172,3536.8,N,,N,N
Pendle Borough Council,Operational Services,Agency Staff,Emp : Agency Wages,1004,NW RECRUITMENT SERVICES LIMITED,A0091588,31/08/2023,OPS0336172,1110.3,N,,N,N
Pendle Borough Council,Operational Services,Agency Staff,Emp : Agency Wages,1004,NW RECRUITMENT SERVICES LIMITED,A0091588,17/08/2023,OPS0335889,1232.81,N,,N,N
Pendle Borough Council,Operational Services,Agency Staff,Emp : Agency Wages,1004,NW RECRUITMENT SERVICES LIMITED,A0091588,17/08/2023,OPS0335892,1439.86,N,,N,N
Pendle Borough Council,Operational Services,Agency Staff,Emp : Agency Wages,1004,NW RECRUITMENT SERVICES LIMITED,A0091588,31/08/2023,OPS0336174,1496.43,N,,N,N
Pendle Borough Council,Operational Services,Transport Related Expense,Tprt : Repairs : General,3105,GO PLANT FLEET SERVICES LIMITED,A0091600,10/08/2023,OPS0335463,28.73,N,,N,N
Pendle Borough Council,Operational Services,Transport Related Expense,Tprt : Repairs : General,3105,GO PLANT FLEET SERVICES LIMITED,A0091600,10/08/2023,OPS0335467,74.12,N,,N,N
Pendle Borough Council,Operational Services,Transport Related Expense,Tprt : Repairs : General,3105,GO PLANT FLEET SERVICES LIMITED,A0091600,10/08/2023,OPS0335464,31.9,N,,N,N
Pendle Borough Council,Operational Services,Transport Related Expense,Tprt : Repairs : General,3105,GO PLANT FLEET SERVICES LIMITED,A0091600,10/08/2023,OPS0335465,68.98,N,,N,N
Pendle Borough Council,Operational Services,Transport Related Expense,Tprt : Repairs : General,3105,GO PLANT FLEET SERVICES LIMITED,A0091600,10/08/2023,OPS0335471,1036.55,N,,N,N
Pendle Borough Council,Operational Services,Transport Related Expense,Tprt : Repairs : General,3105,GO PLANT FLEET SERVICES LIMITED,A0091600,10/08/2023,OPS0335495,153.18,N,,N,N
Pendle Borough Council,Operational Services,Transport Related Expense,Tprt : Repairs : General,3105,GO PLANT FLEET SERVICES LIMITED,A0091600,10/08/2023,OPS0335494,166.94,N,,N,N
Pendle Borough Council,Operational Services,Transport Related Expense,Tprt : Repairs : General,3105,GO PLANT FLEET SERVICES LIMITED,A0091600,10/08/2023,OPS0335487,41.01,N,,N,N
Pendle Borough Council,Operational Services,Transport Related Expense,Tprt : Repairs : General,3105,GO PLANT FLEET SERVICES LIMITED,A0091600,10/08/2023,OPS0335480,204.5,N,,N,N
Pendle Borough Council,Operational Services,Transport Related Expense,Tprt : Repairs : General,3105,GO PLANT FLEET SERVICES LIMITED,A0091600,10/08/2023,OPS0335486,41.01,N,,N,N
Pendle Borough Council,Operational Services,Transport Related Expense,Tprt : Repairs : General,3105,GO PLANT FLEET SERVICES LIMITED,A0091600,10/08/2023,OPS0335473,20,N,,N,N
Pendle Borough Council,Operational Services,Transport Related Expense,Tprt : Repairs : General,3105,GO PLANT FLEET SERVICES LIMITED,A0091600,10/08/2023,OPS0335462,24.62,N,,N,N
Pendle Borough Council,Operational Services,Transport Related Expense,Tprt : Repairs : General,3105,GO PLANT FLEET SERVICES LIMITED,A0091600,10/08/2023,OPS0335474,660.98,N,,N,N
Pendle Borough Council,Operational Services,Transport Related Expense,Tprt : Repairs : General,3105,GO PLANT FLEET SERVICES LIMITED,A0091600,10/08/2023,OPS0335476,204.5,N,,N,N
Pendle Borough Council,Operational Services,Transport Related Expense,Tprt : Repairs : General,3105,GO PLANT FLEET SERVICES LIMITED,A0091600,10/08/2023,OPS0335485,49.84,N,,N,N
Pendle Borough Council,Operational Services,Transport Related Expense,Tprt : Repairs : General,3105,GO PLANT FLEET SERVICES LIMITED,A0091600,10/08/2023,OPS0335483,183.94,N,,N,N
Pendle Borough Council,Operational Services,Transport Related Expense,Tyres,3204,GO PLANT FLEET SERVICES LIMITED,A0091600,10/08/2023,OPS0335475,126.42,N,,N,N
Pendle Borough Council,Operational Services,Transport Related Expense,Tyres,3204,GO PLANT FLEET SERVICES LIMITED,A0091600,10/08/2023,OPS0335469,312.99,N,,N,N
Pendle Borough Council,Operational Services,Transport Related Expense,Tyres,3204,GO PLANT FLEET SERVICES LIMITED,A0091600,10/08/2023,OPS0335466,323.23,N,,N,N
Pendle Borough Council,Operational Services,Transport Related Expense,Tyres,3204,GO PLANT FLEET SERVICES LIMITED,A0091600,10/08/2023,OPS0335478,115.76,N,,N,N
Pendle Borough Council,Operational Services,Transport Related Expense,Tyres,3204,GO PLANT FLEET SERVICES LIMITED,A0091600,10/08/2023,OPS0335491,28.73,N,,N,N
Pendle Borough Council,Operational Services,Transport Related Expense,Tyres,3204,GO PLANT FLEET SERVICES LIMITED,A0091600,10/08/2023,OPS0335493,108.31,N,,N,N
Pendle Borough Council,Operational Services,Transport Related Expense,Tyres,3204,GO PLANT FLEET SERVICES LIMITED,A0091600,10/08/2023,OPS0335492,110.53,N,,N,N
Pendle Borough Council,Operational Services,Transport Related Expense,Tyres,3204,GO PLANT FLEET SERVICES LIMITED,A0091600,10/08/2023,OPS0335490,115.77,N,,N,N
Pendle Borough Council,Operational Services,Transport Related Expense,Tyres,3204,GO PLANT FLEET SERVICES LIMITED,A0091600,10/08/2023,OPS0335489,221.27,N,,N,N
Pendle Borough Council,Operational Services,Transport Related Expense,Tyres,3204,GO PLANT FLEET SERVICES LIMITED,A0091600,10/08/2023,OPS0335477,126.18,N,,N,N
Pendle Borough Council,Operational Services,Transport Related Expense,Tyres,3204,GO PLANT FLEET SERVICES LIMITED,A0091600,10/08/2023,OPS0335479,126.18,N,,N,N
Pendle Borough Council,Operational Services,Transport Related Expense,Tyres,3204,GO PLANT FLEET SERVICES LIMITED,A0091600,10/08/2023,OPS0335488,126.18,N,,N,N
Pendle Borough Council,Operational Services,Transport Related Expense,Tyres,3204,GO PLANT FLEET SERVICES LIMITED,A0091600,10/08/2023,OPS0335481,125.57,N,,N,N
Pendle Borough Council,Operational Services,Transport Related Expense,Tyres,3204,GO PLANT FLEET SERVICES LIMITED,A0091600,10/08/2023,OPS0335482,125.57,N,,N,N
Pendle Borough Council,Operational Services,Transport Related Expense,Tyres,3204,GO PLANT FLEET SERVICES LIMITED,A0091600,10/08/2023,OPS0335468,28.73,N,,N,N
Pendle Borough Council,Operational Services,Transport Related Expense,Tyres,3204,GO PLANT FLEET SERVICES LIMITED,A0091600,10/08/2023,OPS0335484,126.18,N,,N,N
Pendle Borough Council,Operational Services,Transport Related Expense,Tprt : Annual Hire Charge,3601,GO PLANT FLEET SERVICES LIMITED,A0091600,17/08/2023,OPS0335850,3540.62,N,,N,N
Pendle Borough Council,Operational Services,Transport Related Expense,Tprt : Annual Hire Charge,3601,GO PLANT FLEET SERVICES LIMITED,A0091600,17/08/2023,OPS0335850,3540.62,N,,N,N
Pendle Borough Council,Operational Services,Transport Related Expense,Tprt : Annual Hire Charge,3601,GO PLANT FLEET SERVICES LIMITED,A0091600,17/08/2023,OPS0335850,3540.62,N,,N,N
Pendle Borough Council,Operational Services,Transport Related Expense,Tprt : Annual Hire Charge,3601,GO PLANT FLEET SERVICES LIMITED,A0091600,17/08/2023,OPS0335850,3540.62,N,,N,N
Pendle Borough Council,Operational Services,Transport Related Expense,Tprt : Annual Hire Charge,3601,GO PLANT FLEET SERVICES LIMITED,A0091600,17/08/2023,OPS0335850,3540.62,N,,N,N
Pendle Borough Council,Operational Services,Transport Related Expense,Tprt : Annual Hire Charge,3601,GO PLANT FLEET SERVICES LIMITED,A0091600,17/08/2023,OPS0335850,3344.64,N,,N,N
Pendle Borough Council,Operational Services,Transport Related Expense,Tprt : Annual Hire Charge,3601,GO PLANT FLEET SERVICES LIMITED,A0091600,17/08/2023,OPS0335850,3540.62,N,,N,N
Pendle Borough Council,Operational Services,Transport Related Expense,Tprt : Annual Hire Charge,3601,GO PLANT FLEET SERVICES LIMITED,A0091600,17/08/2023,OPS0335850,3540.62,N,,N,N
Pendle Borough Council,Operational Services,Transport Related Expense,Tprt : Annual Hire Charge,3601,GO PLANT FLEET SERVICES LIMITED,A0091600,17/08/2023,OPS0335850,3549.74,N,,N,N
Pendle Borough Council,Operational Services,Transport Related Expense,Tprt : Annual Hire Charge,3601,GO PLANT FLEET SERVICES LIMITED,A0091600,17/08/2023,OPS0335850,3549.74,N,,N,N
Pendle Borough Council,Operational Services,Transport Related Expense,Tprt : Annual Hire Charge,3601,GO PLANT FLEET SERVICES LIMITED,A0091600,17/08/2023,OPS0335850,3549.74,N,,N,N
Pendle Borough Council,Operational Services,Transport Related Expense,Tprt : Annual Hire Charge,3601,GO PLANT FLEET SERVICES LIMITED,A0091600,17/08/2023,OPS0335850,3497.07,N,,N,N
Pendle Borough Council,Operational Services,Transport Related Expense,Tprt : Annual Hire Charge,3601,GO PLANT FLEET SERVICES LIMITED,A0091600,17/08/2023,OPS0335850,3393,N,,N,N
Pendle Borough Council,Operational Services,Transport Related Expense,Tprt : Annual Hire Charge,3601,GO PLANT FLEET SERVICES LIMITED,A0091600,17/08/2023,OPS0335850,2654.17,N,,N,N
Pendle Borough Council,Operational Services,Transport Related Expense,Tprt : Annual Hire Charge,3601,GO PLANT FLEET SERVICES LIMITED,A0091600,17/08/2023,OPS0335850,1981.53,N,,N,N
Pendle Borough Council,Operational Services,Transport Related Expense,Tprt : Annual Hire Charge,3601,GO PLANT FLEET SERVICES LIMITED,A0091600,17/08/2023,OPS0335850,1981.53,N,,N,N
Pendle Borough Council,Operational Services,Transport Related Expense,Tprt : Annual Hire Charge,3601,GO PLANT FLEET SERVICES LIMITED,A0091600,17/08/2023,OPS0335850,1981.53,N,,N,N
Pendle Borough Council,Operational Services,Transport Related Expense,Tprt : Annual Hire Charge,3601,GO PLANT FLEET SERVICES LIMITED,A0091600,17/08/2023,OPS0335850,1981.53,N,,N,N
Pendle Borough Council,Operational Services,Transport Related Expense,Tprt : Annual Hire Charge,3601,GO PLANT FLEET SERVICES LIMITED,A0091600,17/08/2023,OPS0335850,1981.53,N,,N,N
Pendle Borough Council,Operational Services,Transport Related Expense,Tprt : Annual Hire Charge,3601,GO PLANT FLEET SERVICES LIMITED,A0091600,17/08/2023,OPS0335850,509.54,N,,N,N
Pendle Borough Council,Operational Services,Transport Related Expense,Tprt : Annual Hire Charge,3601,GO PLANT FLEET SERVICES LIMITED,A0091600,10/08/2023,OPS0335460,885.67,N,,N,N
Pendle Borough Council,Operational Services,Transport Related Expense,Tprt : Annual Hire Charge,3601,GO PLANT FLEET SERVICES LIMITED,A0091600,17/08/2023,OPS0335850,598.81,N,,N,N
Pendle Borough Council,Operational Services,Transport Related Expense,Tprt : Annual Hire Charge,3601,GO PLANT FLEET SERVICES LIMITED,A0091600,17/08/2023,OPS0335850,650,N,,N,N
Pendle Borough Council,Operational Services,Transport Related Expense,Tprt : Annual Hire Charge,3601,GO PLANT FLEET SERVICES LIMITED,A0091600,17/08/2023,OPS0335850,598.81,N,,N,N
Pendle Borough Council,Operational Services,Transport Related Expense,Tprt : Annual Hire Charge,3601,GO PLANT FLEET SERVICES LIMITED,A0091600,17/08/2023,OPS0335850,598.81,N,,N,N
Pendle Borough Council,Operational Services,Transport Related Expense,Tprt : Annual Hire Charge,3601,GO PLANT FLEET SERVICES LIMITED,A0091600,17/08/2023,OPS0335850,650,N,,N,N
Pendle Borough Council,Operational Services,Transport Related Expense,Tprt : Annual Hire Charge,3601,GO PLANT FLEET SERVICES LIMITED,A0091600,17/08/2023,OPS0335850,598.81,N,,N,N
Pendle Borough Council,Operational Services,Transport Related Expense,Tprt : Annual Hire Charge,3601,GO PLANT FLEET SERVICES LIMITED,A0091600,17/08/2023,OPS0335850,239.53,N,,N,N
Pendle Borough Council,Operational Services,Transport Related Expense,Tprt : Annual Hire Charge,3601,GO PLANT FLEET SERVICES LIMITED,A0091600,17/08/2023,OPS0335850,239.53,N,,N,N
Pendle Borough Council,Operational Services,Transport Related Expense,Tprt : Annual Hire Charge,3601,GO PLANT FLEET SERVICES LIMITED,A0091600,17/08/2023,OPS0335850,239.53,N,,N,N
Pendle Borough Council,Operational Services,Transport Related Expense,Tprt : Annual Hire Charge,3601,GO PLANT FLEET SERVICES LIMITED,A0091600,17/08/2023,OPS0335850,239.53,N,,N,N
Pendle Borough Council,Operational Services,Transport Related Expense,Tprt : Annual Hire Charge,3601,GO PLANT FLEET SERVICES LIMITED,A0091600,17/08/2023,OPS0335850,239.53,N,,N,N
Pendle Borough Council,Operational Services,Transport Related Expense,Tprt : Annual Hire Charge,3601,GO PLANT FLEET SERVICES LIMITED,A0091600,17/08/2023,OPS0335850,239.53,N,,N,N
Pendle Borough Council,Operational Services,Transport Related Expense,Tprt : Annual Hire Charge,3601,GO PLANT FLEET SERVICES LIMITED,A0091600,17/08/2023,OPS0335850,239.53,N,,N,N
Pendle Borough Council,Operational Services,Transport Related Expense,Tprt : Annual Hire Charge,3601,GO PLANT FLEET SERVICES LIMITED,A0091600,17/08/2023,OPS0335850,339.69,N,,N,N
Pendle Borough Council,Operational Services,Transport Related Expense,Tprt : Annual Hire Charge,3601,GO PLANT FLEET SERVICES LIMITED,A0091600,10/08/2023,OPS0335459,440,N,,N,N
Pendle Borough Council,Operational Services,Transport Related Expense,Tprt : Annual Hire Charge,3601,GO PLANT FLEET SERVICES LIMITED,A0091600,10/08/2023,OPS0335461,951.08,N,,N,N
Pendle Borough Council,Operational Services,Transport Related Expense,Tprt : Annual Hire Charge,3601,GO PLANT FLEET SERVICES LIMITED,A0091600,10/08/2023,OPS0335652,951.08,N,,N,N
Pendle Borough Council,Operational Services,Transport Related Expense,Tprt : Annual Hire Charge,3601,GO PLANT FLEET SERVICES LIMITED,A0091600,10/08/2023,OPS0335472,50,N,,N,N
Pendle Borough Council,Operational Services,Transport Related Expense,Tprt : Annual Hire Charge,3601,GO PLANT FLEET SERVICES LIMITED,A0091600,17/08/2023,OPS0335850,592.28,N,,N,N
Pendle Borough Council,Operational Services,Transport Related Expense,Tprt : Annual Hire Charge,3601,GO PLANT FLEET SERVICES LIMITED,A0091600,17/08/2023,OPS0335850,592.28,N,,N,N
Pendle Borough Council,Operational Services,Transport Related Expense,Tprt : Annual Hire Charge,3601,GO PLANT FLEET SERVICES LIMITED,A0091600,17/08/2023,OPS0335850,592.28,N,,N,N
Pendle Borough Council,Operational Services,Transport Related Expense,Tprt : Annual Hire Charge,3601,GO PLANT FLEET SERVICES LIMITED,A0091600,17/08/2023,OPS0335850,592.28,N,,N,N
Pendle Borough Council,Operational Services,Transport Related Expense,Tprt : Annual Hire Charge,3601,GO PLANT FLEET SERVICES LIMITED,A0091600,17/08/2023,OPS0335850,592.28,N,,N,N
Pendle Borough Council,Operational Services,Transport Related Expense,Tprt : Annual Hire Charge,3601,GO PLANT FLEET SERVICES LIMITED,A0091600,17/08/2023,OPS0335850,535.67,N,,N,N
Pendle Borough Council,Operational Services,Transport Related Expense,Tprt : Annual Hire Charge,3601,GO PLANT FLEET SERVICES LIMITED,A0091600,17/08/2023,OPS0335850,239.53,N,,N,N
Pendle Borough Council,Operational Services,Transport Related Expense,Tprt : Annual Hire Charge,3601,GO PLANT FLEET SERVICES LIMITED,A0091600,17/08/2023,OPS0335850,496.4,N,,N,N
Pendle Borough Council,Operational Services,Transport Related Expense,Tprt : Annual Hire Charge,3601,GO PLANT FLEET SERVICES LIMITED,A0091600,17/08/2023,OPS0335850,496.4,N,,N,N
Pendle Borough Council,Finance,Transfer Payments,HB : Rent Allowance,6003,REDACT - PERSONAL DATA,A0091602,10/08/2023,FIN0336388,322.33,N,,N,N
Pendle Borough Council,Finance,,Paid in the Year,PD03,COLNE BID LIMITED,A0091663,24/08/2023,FIN0336154,20000,N,,N,N
Pendle Borough Council,Economic Growth,Premises Related Expense,Grounds : R & M : Day to Day : Routine,2101,A&G LANDSCAPES & GROUNDWORKS LIMITED,A0091675,24/08/2023,ECO0336096,10,N,,N,N
Pendle Borough Council,Economic Growth,Premises Related Expense,Grounds : R & M : Day to Day : Routine,2101,A&G LANDSCAPES & GROUNDWORKS LIMITED,A0091675,24/08/2023,ECO0336096,100,N,,N,N
Pendle Borough Council,Economic Growth,Premises Related Expense,Grounds : R & M : Day to Day : Routine,2101,A&G LANDSCAPES & GROUNDWORKS LIMITED,A0091675,17/08/2023,ECO0335867,50,N,,N,N
Pendle Borough Council,Economic Growth,Supplies and Services,Other Expenses,4705,A&G LANDSCAPES & GROUNDWORKS LIMITED,A0091675,24/08/2023,ECO0336098,500,N,,N,N
Pendle Borough Council,Economic Growth,Supplies and Services,Other Expenses,4705,A&G LANDSCAPES & GROUNDWORKS LIMITED,A0091675,24/08/2023,ECO0336098,5881.94,N,,N,N
Pendle Borough Council,Economic Growth,Supplies and Services,Other Expenses,4705,A&G LANDSCAPES & GROUNDWORKS LIMITED,A0091675,24/08/2023,ECO0336095,100,N,,N,N
Pendle Borough Council,Economic Growth,,Paid in the Year,PD03,A&G LANDSCAPES & GROUNDWORKS LIMITED,A0091675,03/08/2023,ECO0335658,1250,N,,N,N
Pendle Borough Council,Economic Growth,,Paid in the Year,PD03,A&G LANDSCAPES & GROUNDWORKS LIMITED,A0091675,03/08/2023,ECO0335658,24636.45,N,,N,N
Pendle Borough Council,Policy & Commissioning,Supplies and Services,Other Expenses,4705,TEXTHELP LIMITED,A0091682,10/08/2023,POL0335784,1557,N,,N,N
Pendle Borough Council,Legal & Democratic Services,Supplies and Services,Printing & Stationery,4301,NORTH YORKSHIRE COUNCIL,A0091694,03/08/2023,LAD0335605,498.5,N,,N,N
Pendle Borough Council,Housing & Environmental Health,Premises Related Expense,Bldgs : R & M : Abnormal,2002,BRYAN LEE BUILDING CONTRACTORS LIMITED,A0091749,03/08/2023,HEH0335247,9283.34,N,,N,N
Pendle Borough Council,Human Resources,Supplies and Services,Seminars etc All Costs,4601,ACAS,A0091750,10/08/2023,PER0335782,270,N,,N,N
Pendle Borough Council,Property Services,Capital Costs,Capital : Payments,CD14,CRAFTSMAN RESTORATION LTD,A0091780,17/08/2023,EST0335926,2387.45,N,,N,N
Pendle Borough Council,Housing & Environmental Health,Agency Staff,Emp : Agency Wages,1004,THE OYSTER PARTNERSHIP LIMITED,A0091781,31/08/2023,HEH0336194,1293.44,N,,N,N
Pendle Borough Council,Housing & Environmental Health,Agency Staff,Emp : Agency Wages,1004,THE OYSTER PARTNERSHIP LIMITED,A0091781,17/08/2023,HEH0335848,1493.06,N,,N,N
Pendle Borough Council,Housing & Environmental Health,Agency Staff,Emp : Agency Wages,1004,THE OYSTER PARTNERSHIP LIMITED,A0091781,10/08/2023,HEH0335719,1550.7,N,,N,N
Pendle Borough Council,Housing & Environmental Health,Agency Staff,Emp : Agency Wages,1004,THE OYSTER PARTNERSHIP LIMITED,A0091781,03/08/2023,HEH0335591,1558.01,N,,N,N
Pendle Borough Council,Housing & Environmental Health,Agency Staff,Emp : Agency Wages,1004,THE OYSTER PARTNERSHIP LIMITED,A0091781,10/08/2023,HEH0335720,1558.46,N,,N,N
Pendle Borough Council,Housing & Environmental Health,Agency Staff,Emp : Agency Wages,1004,THE OYSTER PARTNERSHIP LIMITED,A0091781,24/08/2023,HEH0336034,1574.29,N,,N,N
Pendle Borough Council,Housing & Environmental Health,Supplies and Services,Other Expenses,4705,ROUGHLEE BOOTH PARISH COUNCIL,A0091815,24/08/2023,HEH0336029,450,N,,N,N
Pendle Borough Council,Housing & Environmental Health,Supplies and Services,Other Expenses,4705,ROUGHLEE BOOTH PARISH COUNCIL,A0091815,24/08/2023,HEH0336028,2000,N,,N,N
Pendle Borough Council,Housing & Environmental Health,Supplies and Services,Consultants Fees,4401,G2 RECRUITMENT SOLUTIONS,A0091827,24/08/2023,HEH0336033,7120.05,N,,N,N
Pendle Borough Council,Legal & Democratic Services,Supplies and Services,Consultants Fees,4401,MR SIMON WHITFIELD,A0091841,31/08/2023,LAD0336176,1500,N,,N,N
Pendle Borough Council,Property Services,Premises Related Expense,Water & Sewerage,2501,BUSINESS STREAM,A0091916,24/08/2023,EST0336127,18.61,N,,N,N
Pendle Borough Council,Property Services,Premises Related Expense,Water & Sewerage,2501,BUSINESS STREAM,A0091916,24/08/2023,EST0336109,292.43,N,,N,N
Pendle Borough Council,Property Services,Premises Related Expense,Water & Sewerage,2501,BUSINESS STREAM,A0091916,31/08/2023,EST0336198,324.02,N,,N,N
Pendle Borough Council,Housing & Environmental Health,Capital Costs,Ren Grant : 1996 Act,CH22,BUILDEASI NW LTD,A0091945,17/08/2023,HEH0335847,8580.4,N,,N,N
Pendle Borough Council,Operational Services,Indirect Employee Expenses,Lone Worker Monitoring Service,1270,PICK PROTECTION,A0091948,31/08/2023,OPS0336168,5110,N,,N,N
Pendle Borough Council,Policy & Commissioning,Supplies and Services,Grant Funding,4737,PENDLE FOOD FOR ALL FOOD CLUB,A0091966,03/08/2023,POL0335614,20000,N,,N,N
Pendle Borough Council,Finance,Supplies and Services,Seminars etc All Costs,4601,PSTAX,A0091984,31/08/2023,FIN0336157,313.5,N,,N,N
Pendle Borough Council,Operational Services,,Stock : Purchases,PJ01,SMI GROUP UK,A0091999,10/08/2023,OPS0335748,59.64,N,,N,N
Pendle Borough Council,Operational Services,,Stock : Purchases,PJ01,SMI GROUP UK,A0091999,17/08/2023,OPS0335881,219.37,N,,N,N
Pendle Borough Council,Policy & Commissioning,Supplies and Services,Children`s holiday activities,4716,THE LIGHTBEAM ACADEMY LTD,A0092431,24/08/2023,POL0335890,4410,N,,N,N
Pendle Borough Council,Housing & Environmental Health,Capital Costs,Ren Grant : 1996 Act,CH22,OCEAN BATHROOMS TILES AND HEATING LTD,A0092441,31/08/2023,HEH0336195,147,N,,N,N
Pendle Borough Council,Housing & Environmental Health,Capital Costs,Ren Grant : 1996 Act,CH22,OCEAN BATHROOMS TILES AND HEATING LTD,A0092441,03/08/2023,HEH0335250,6760.9,N,,N,N
Pendle Borough Council,Finance,Agency Costs,#N/A,5304,LIVERPOOL UNIVERSITY HOSPITALS NHS FOUNDATIONTRUST,A0092555,17/08/2023,FIN0335961,22857.5,N,,N,N
Pendle Borough Council,Finance,Agency Costs,#N/A,5304,LIVERPOOL UNIVERSITY HOSPITALS NHS FOUNDATIONTRUST,A0092555,17/08/2023,FIN0335962,22857.5,N,,N,N
Pendle Borough Council,Legal & Democratic Services,,Other Income : Non-VATable,9303,PENDLE HIPPODROME THEATRE LTD,A0092890,24/08/2023,LAD0336039,112,N,,N,N
Pendle Borough Council,Policy & Commissioning,Supplies and Services,Grant Funding,4737,PAVILLION COMMUNITY HUB AND CAFE,A0093251,24/08/2023,POL0335891,8900,N,,N,N
Pendle Borough Council,Housing & Environmental Health,Supplies and Services,Other Expenses,4705,FRED HAMER FUNERAL SERVICE NELSON,A0093306,17/08/2023,HEH0335845,1050,N,,N,N
Pendle Borough Council,Housing & Environmental Health,,Housing Impts/Cap Repairs,0104,BOILER HOUSE EARBY LTD,A0093438,03/08/2023,HEH0335594,2250,N,,N,N
Pendle Borough Council,Housing & Environmental Health,,Housing Impts/Cap Repairs,0104,BOILER HOUSE EARBY LTD,A0093438,03/08/2023,HEH0335595,2350,N,,N,N
Pendle Borough Council,Housing & Environmental Health,Supplies and Services,EFM Materials,4004,PELSIS LIMITED,A0093853,03/08/2023,HEH0335590,193.69,N,,N,N
Pendle Borough Council,Operational Services,,Stock : Purchases,PJ01,AMAZON PAYMENTS UK LIMITED,A0093876,31/08/2023,OPS0336165,8.48,N,,N,N
Pendle Borough Council,Operational Services,Premises Related Expense,Grounds : R & M : Gds Maint ,2103,IDVERDE,A0093945,24/08/2023,OPS0336048,9865.22,N,,N,N
Pendle Borough Council,Operational Services,Premises Related Expense,Grounds : R & M : Gds Maint ,2103,IDVERDE,A0093945,24/08/2023,OPS0336047,11345.81,N,,N,N
Pendle Borough Council,Economic Growth,Supplies and Services,Grant Funding,4737,BUILDING BRIDGES PENDLE,A0094107,24/08/2023,ECO0336027,3008.39,N,,N,N
Pendle Borough Council,Operational Services,Transport Related Expense,Tprt : Repairs : General,3105,TURFIX PITCH SOLUTIONS,A0094206,17/08/2023,OPS0335922,102.25,N,,N,N
Pendle Borough Council,Finance,Supplies and Services,Subscriptions & Donations,4706,EMAP PUBLISHING,A0094207,17/08/2023,FIN0335957,363.16,N,,N,N
Pendle Borough Council,Revenues Services,Supplies and Services,DSS Collection Fee,4414,MARSTON (HOLDINGS) LIMITED,A0094273,10/08/2023,TRE0335731,46.08,N,,N,N
Pendle Borough Council,Revenues Services,Supplies and Services,DSS Collection Fee,4414,MARSTON (HOLDINGS) LIMITED,A0094273,03/08/2023,TRE0335653,77.94,N,,N,N
Pendle Borough Council,Housing & Environmental Health,Premises Related Expense,Bldgs : R & M : Abnormal,2002,SOUTHFIELD CONSTRUCTION,A0094294,03/08/2023,HEH0335022,220,N,,N,N
Pendle Borough Council,Housing & Environmental Health,Premises Related Expense,Bldgs : R & M : Abnormal,2002,SOUTHFIELD CONSTRUCTION,A0094294,03/08/2023,HEH0335598,220,N,,N,N
Pendle Borough Council,Housing & Environmental Health,Capital Costs,Ren Grant : 1996 Act,CH22,SOUTHFIELD CONSTRUCTION,A0094294,03/08/2023,HEH0335635,80,N,,N,N
Pendle Borough Council,Policy & Commissioning,Supplies and Services,Children`s holiday activities,4716,BODIES IN MOTION PENDLE LTD,A0095079,10/08/2023,POL0335786,1207.5,N,,N,N
Pendle Borough Council,Operational Services,Premises Related Expense,Grounds : R & M : Day to Day : Routine,2101,MERRITT & FRYERS LTD,A0095575,10/08/2023,OPS0335761,60,N,,N,N
Pendle Borough Council,Operational Services,Premises Related Expense,Grounds : R & M : Day to Day : Routine,2101,M W ENVIRONMENTAL,A0095862,24/08/2023,OPS0336057,375,N,,N,N
Pendle Borough Council,Operational Services,Premises Related Expense,Grounds : R & M : Day to Day : Routine,2101,M W ENVIRONMENTAL,A0095862,31/08/2023,OPS0336181,350,N,,N,N
Pendle Borough Council,Operational Services,Premises Related Expense,Grounds : R & M : Day to Day : Routine,2101,M W ENVIRONMENTAL,A0095862,31/08/2023,OPS0336181,91.56,N,,N,N
Pendle Borough Council,Operational Services,Premises Related Expense,Grounds : R & M : Day to Day : Routine,2101,M W ENVIRONMENTAL,A0095862,31/08/2023,OPS0336182,125,N,,N,N
Pendle Borough Council,Operational Services,Premises Related Expense,Grounds : R & M : Day to Day : Routine,2101,M W ENVIRONMENTAL,A0095862,17/08/2023,OPS0335905,165,N,,N,N
Pendle Borough Council,Operational Services,Premises Related Expense,Grounds : R & M : Day to Day : Routine,2101,M W ENVIRONMENTAL,A0095862,10/08/2023,OPS0335760,265,N,,N,N
Pendle Borough Council,Operational Services,Premises Related Expense,Grounds : R & M : Day to Day : Routine,2101,M W ENVIRONMENTAL,A0095862,31/08/2023,OPS0336185,292.03,N,,N,N
Pendle Borough Council,Operational Services,Premises Related Expense,Grounds : R & M : Day to Day : Routine,2101,M W ENVIRONMENTAL,A0095862,24/08/2023,OPS0336068,95,N,,N,N
Pendle Borough Council,Policy & Commissioning,Supplies and Services,Other Expenses,4705,COLNE YOUTH ACTION GROUP,A0096017,17/08/2023,POL0335879,490,N,,N,N
Pendle Borough Council,Policy & Commissioning,Supplies and Services,Children`s holiday activities,4716,COLNE YOUTH ACTION GROUP,A0096017,24/08/2023,POL0335876,268.8,N,,N,N
Pendle Borough Council,Policy & Commissioning,Supplies and Services,Children`s holiday activities,4716,COLNE YOUTH ACTION GROUP,A0096017,24/08/2023,POL0335875,672,N,,N,N
Pendle Borough Council,Policy & Commissioning,Supplies and Services,Children`s holiday activities,4716,COLNE YOUTH ACTION GROUP,A0096017,24/08/2023,POL0335878,2329.6,N,,N,N
Pendle Borough Council,Policy & Commissioning,Supplies and Services,Children`s holiday activities,4716,COLNE YOUTH ACTION GROUP,A0096017,24/08/2023,POL0335877,2419.2,N,,N,N
Pendle Borough Council,Policy & Commissioning,Supplies and Services,Children`s holiday activities,4716,COLNE YOUTH ACTION GROUP,A0096017,24/08/2023,POL0335874,6048,N,,N,N
Pendle Borough Council,Policy & Commissioning,Supplies and Services,Children`s holiday activities,4716,COMMUNITY ARTS BY ZK,A0096410,03/08/2023,POL0335612,7560,N,,N,N
Pendle Borough Council,Policy & Commissioning,Supplies and Services,Children`s holiday activities,4716,FUN-ATICS LTD,A0096414,17/08/2023,POL0335321,5292,N,,N,N
Pendle Borough Council,Housing & Environmental Health,Transfer Payments,Accommodation ,6103,REGENT GUEST HOUSE,A0096417,17/08/2023,HEH0335854,1750,N,,N,N
Pendle Borough Council,Housing & Environmental Health,Transfer Payments,Accommodation ,6103,REGENT GUEST HOUSE,A0096417,17/08/2023,HEH0335855,1750,N,,N,N
Pendle Borough Council,Housing & Environmental Health,Transfer Payments,Accommodation ,6103,REGENT GUEST HOUSE,A0096417,17/08/2023,HEH0335856,1750,N,,N,N
Pendle Borough Council,Housing & Environmental Health,Transfer Payments,Accommodation ,6103,REGENT GUEST HOUSE,A0096417,17/08/2023,HEH0335857,1750,N,,N,N
Pendle Borough Council,Housing & Environmental Health,Transfer Payments,Accommodation ,6103,REGENT GUEST HOUSE,A0096417,17/08/2023,HEH0335858,1750,N,,N,N
Pendle Borough Council,Property Services,Premises Related Expense,Gas,2202,E.ON NEXT ENERGY LIMITED,A0096428,24/08/2023,EST0336120,27.28,N,,N,N
Pendle Borough Council,Property Services,Premises Related Expense,Electricity,2203,E.ON NEXT ENERGY LIMITED,A0096428,24/08/2023,EST0336123,31,N,,N,N
Pendle Borough Council,Property Services,Premises Related Expense,Electricity,2203,E.ON NEXT ENERGY LIMITED,A0096428,17/08/2023,EST0335942,31,N,,N,N
Pendle Borough Council,Property Services,Premises Related Expense,Electricity,2203,E.ON NEXT ENERGY LIMITED,A0096428,24/08/2023,EST0336121,31.07,N,,N,N
Pendle Borough Council,Property Services,Premises Related Expense,Electricity,2203,E.ON NEXT ENERGY LIMITED,A0096428,24/08/2023,EST0336124,35.02,N,,N,N
Pendle Borough Council,Property Services,Premises Related Expense,Electricity,2203,E.ON NEXT ENERGY LIMITED,A0096428,10/08/2023,EST0335814,123.33,N,,N,N
Pendle Borough Council,Property Services,Premises Related Expense,Electricity,2203,E.ON NEXT ENERGY LIMITED,A0096428,10/08/2023,EST0335813,4.2,N,,N,N
Pendle Borough Council,Property Services,Premises Related Expense,Electricity,2203,E.ON NEXT ENERGY LIMITED,A0096428,10/08/2023,EST0335815,4.2,N,,N,N
Pendle Borough Council,Property Services,Premises Related Expense,Electricity,2203,E.ON NEXT ENERGY LIMITED,A0096428,17/08/2023,EST0335931,4.2,N,,N,N
Pendle Borough Council,Property Services,Premises Related Expense,Electricity,2203,E.ON NEXT ENERGY LIMITED,A0096428,17/08/2023,EST0335944,13.8,N,,N,N
Pendle Borough Council,Property Services,Premises Related Expense,Electricity,2203,E.ON NEXT ENERGY LIMITED,A0096428,17/08/2023,EST0335929,30,N,,N,N
Pendle Borough Council,Property Services,Premises Related Expense,Electricity,2203,E.ON NEXT ENERGY LIMITED,A0096428,24/08/2023,EST0336119,78.75,N,,N,N
Pendle Borough Council,Property Services,Premises Related Expense,Electricity,2203,E.ON NEXT ENERGY LIMITED,A0096428,24/08/2023,EST0336125,257.84,N,,N,N
Pendle Borough Council,Operational Services,Premises Related Expense,Grounds : R & M : Day to Day : Routine,2101,JCB PRICE & SON LTD,A0096491,10/08/2023,OPS0335776,4100,N,,N,N
Pendle Borough Council,Operational Services,Premises Related Expense,Grounds : R & M : Day to Day : Routine,2101,JCB PRICE & SON LTD,A0096491,10/08/2023,OPS0335777,6800,N,,N,N
Pendle Borough Council,Housing & Environmental Health,Supplies and Services,Other Expenses,4705,WHITEFIELDS ESTATE AGENTS LTD,A0096498,10/08/2023,HEH0335726,1500,N,,N,N
Pendle Borough Council,Directorate,Supplies and Services,Seminars etc All Costs,4601,JJG CONSULTANCY & EXECUTIVE COACHING SERVICES LTD,A0096573,03/08/2023,DIR0335682,230,N,,N,N
Pendle Borough Council,Directorate,Supplies and Services,Seminars etc All Costs,4601,JJG CONSULTANCY & EXECUTIVE COACHING SERVICES LTD,A0096573,24/08/2023,DIR0336087,230,N,,N,N
Pendle Borough Council,Housing & Environmental Health,Supplies and Services,Other Expenses,4705,REDACT - PERSONAL DATA,A0096771,17/08/2023,HEH0335860,500,N,,N,N
Pendle Borough Council,Accountancy Control,Supplies and Services,Grant Funding,4737,REDACT - PERSONAL DATA,A0096806,03/08/2023,AAS0335685,500,N,,N,N
Pendle Borough Council,Accountancy Control,Supplies and Services,Grant Funding,4737,REDACT - PERSONAL DATA,A0096808,03/08/2023,AAS0335690,500,N,,N,N
Pendle Borough Council,Accountancy Control,Supplies and Services,Grant Funding,4737,REDACT - PERSONAL DATA,A0096810,03/08/2023,AAS0335691,500,N,,N,N
Pendle Borough Council,Accountancy Control,Supplies and Services,Grant Funding,4737,REDACT - PERSONAL DATA,A0096819,03/08/2023,AAS0335692,500,N,,N,N
Pendle Borough Council,Accountancy Control,Supplies and Services,Grant Funding,4737,REDACT - PERSONAL DATA,A0096823,03/08/2023,AAS0335689,500,N,,N,N
Pendle Borough Council,Operational Services,Supplies and Services,Sub-Contractors,4007,WHITLEY BROOK PET CREMATORIUM,A0096827,10/08/2023,OPS0335750,50.83,N,,N,N
Pendle Borough Council,Housing & Environmental Health,,Deposits in Lieu of Bond,B669,REDACT - PERSONAL DATA,A0096833,10/08/2023,HEH0335716,1000,N,,N,N
Pendle Borough Council,Property Services,,Other Income : VATable,9203,REDACT - PERSONAL DATA,A0096839,03/08/2023,EST0335674,162.33,N,,N,N
Pendle Borough Council,Finance,Supplies and Services,Other Expenses,4705,POST OFFICE LTD,A0096844,17/08/2023,FIN0335955,309.57,N,,N,N
Pendle Borough Council,Accountancy Control,Supplies and Services,Grant Funding,4737,REDACT - PERSONAL DATA,A0096866,03/08/2023,AAS0335693,500,N,,N,N
Pendle Borough Council,Human Resources,Supplies and Services,Seminars etc All Costs,4601,ABC NORTH WEST LTD,A0096869,31/08/2023,PER0336197,69,N,,N,N
Pendle Borough Council,Accountancy Control,Supplies and Services,Grant Funding,4737,REDACT - PERSONAL DATA,A0096872,03/08/2023,AAS0335694,500,N,,N,N
Pendle Borough Council,Accountancy Control,Supplies and Services,Grant Funding,4737,REDACT - PERSONAL DATA,A0096893,03/08/2023,AAS0335695,350,N,,N,N
Pendle Borough Council,Accountancy Control,Supplies and Services,Grant Funding,4737,REDACT - PERSONAL DATA,A0096910,03/08/2023,AAS0335698,500,N,,N,N
Pendle Borough Council,Accountancy Control,Supplies and Services,Grant Funding,4737,REDACT - PERSONAL DATA,A0096912,03/08/2023,AAS0335696,500,N,,N,N
Pendle Borough Council,Accountancy Control,Supplies and Services,Grant Funding,4737,REDACT - PERSONAL DATA,A0096916,03/08/2023,AAS0335697,500,N,,N,N
Pendle Borough Council,Operational Services,Premises Related Expense,Grounds : R & M : Day to Day : Routine,2101,J HODKINSON FENCING CONTRACTOR,A0096922,10/08/2023,OPS0335232,115.92,N,,N,N
Pendle Borough Council,Operational Services,Capital Costs,Capital : Payments,CD14,NORMANTON SCREENPRINT,A0096932,24/08/2023,OPS0336081,1049.9,N,,N,N
Pendle Borough Council,Housing & Environmental Health,Supplies and Services,Other Expenses,4705,GREAT PLACES HOUSING GROUP,A0096937,24/08/2023,HEH0335977,88.08,N,,N,N
Pendle Borough Council,Housing & Environmental Health,Supplies and Services,Other Expenses,4705,GREAT PLACES HOUSING GROUP,A0096937,24/08/2023,HEH0335978,366.28,N,,N,N
Pendle Borough Council,Operational Services,Capital Costs,Capital : Payments,CD14,THE CDS GROUP,A0096940,24/08/2023,OPS0336074,5375,N,,N,N
Pendle Borough Council,Operational Services,Capital Costs,Capital : Payments,CD14,THE CDS GROUP,A0096940,24/08/2023,OPS0336075,7950,N,,N,N
Pendle Borough Council,Operational Services,Supplies and Services,Other Expenses,4705,PENNY BENNETT LANDSCAPE ARCHITECTS,A0096959,24/08/2023,OPS0336051,2025,N,,N,N
Pendle Borough Council,Housing & Environmental Health,Supplies and Services,Other Expenses,4705,ELISHA HOUSE CIC,A0096970,03/08/2023,HEH0335596,280,N,,N,N
Pendle Borough Council,Policy & Commissioning,Supplies and Services,Consultants Fees,4401,OPTIMISED ENVIRONMENTS LIMITED,A0096971,24/08/2023,POL0335402,47178.8,N,,N,N
Pendle Borough Council,Accountancy Control,Supplies and Services,Grant Funding,4737,REDACT - PERSONAL DATA,A0096978,03/08/2023,AAS0335699,350,N,,N,N
Pendle Borough Council,Accountancy Control,Supplies and Services,Grant Funding,4737,REDACT - PERSONAL DATA,A0096980,03/08/2023,AAS0335700,350,N,,N,N
Pendle Borough Council,Economic Growth,Supplies and Services,Consultants Fees,4401,RAISE PARTNERSHIP LIMITED,A0096986,24/08/2023,ECO0336093,274.5,N,,N,N
Pendle Borough Council,Economic Growth,Supplies and Services,Consultants Fees,4401,RAISE PARTNERSHIP LIMITED,A0096986,24/08/2023,ECO0336099,1250,N,,N,N
Pendle Borough Council,Economic Growth,Supplies and Services,Consultants Fees,4401,RAISE PARTNERSHIP LIMITED,A0096986,24/08/2023,ECO0336101,1950,N,,N,N
Pendle Borough Council,Economic Growth,Supplies and Services,Consultants Fees,4401,RAISE PARTNERSHIP LIMITED,A0096986,24/08/2023,ECO0336100,6300,N,,N,N
Pendle Borough Council,Economic Growth,Supplies and Services,Consultants Fees,4401,RAISE PARTNERSHIP LIMITED,A0096986,24/08/2023,ECO0336092,17669.17,N,,N,N
Pendle Borough Council,Accountancy Control,Supplies and Services,Grant Funding,4737,REDACT - PERSONAL DATA,A0097003,03/08/2023,AAS0335701,350,N,,N,N
Pendle Borough Council,Operational Services,Transport Related Expense,Tprt : Repairs : General,3105,SIXIS Technology Ltd,A0097018,10/08/2023,OPS0335767,458.8,N,,N,N
Pendle Borough Council,Operational Services,Transport Related Expense,Tprt : Annual Hire Charge,3601,CAR HIRE DAY OF SWANSEA LTD,A0097023,10/08/2023,OPS0335739,374.1,N,,N,N
Pendle Borough Council,Operational Services,Transport Related Expense,Tprt : Annual Hire Charge,3601,CAR HIRE DAY OF SWANSEA LTD,A0097023,03/08/2023,OPS0335639,386.57,N,,N,N
Pendle Borough Council,Operational Services,Transport Related Expense,Tprt : Annual Hire Charge,3601,CAR HIRE DAY OF SWANSEA LTD,A0097023,10/08/2023,OPS0335740,386.57,N,,N,N
Pendle Borough Council,Operational Services,Transport Related Expense,Tprt : Annual Hire Charge,3601,CAR HIRE DAY OF SWANSEA LTD,A0097023,10/08/2023,OPS0335738,678.6,N,,N,N
Pendle Borough Council,Operational Services,Transport Related Expense,Tprt : Annual Hire Charge,3601,CAR HIRE DAY OF SWANSEA LTD,A0097023,10/08/2023,OPS0335737,701.22,N,,N,N
Pendle Borough Council,Finance,Capital Costs,Capital: Design Fees,CD53,DCR SURVEYING AND ESTIMATING SERVICES LTD,A0097173,03/08/2023,FIN0335708,200,N,,N,N
Pendle Borough Council,Finance,Capital Costs,Capital: Design Fees,CD53,DCR SURVEYING AND ESTIMATING SERVICES LTD,A0097173,03/08/2023,FIN0335707,1200.27,N,,N,N
Pendle Borough Council,Finance,Capital Costs,Capital: Design Fees,CD53,DCR SURVEYING AND ESTIMATING SERVICES LTD,A0097173,03/08/2023,FIN0335706,500,N,,N,N
Pendle Borough Council,Accountancy Control,Supplies and Services,Grant Funding,4737,REDACT - PERSONAL DATA,A0097338,03/08/2023,AAS0335702,350,N,,N,N
Pendle Borough Council,Accountancy Control,Supplies and Services,Grant Funding,4737,REDACT - PERSONAL DATA,A0097339,03/08/2023,AAS0335703,350,N,,N,N
Pendle Borough Council,Operational Services,Premises Related Expense,Grounds : R & M : Day to Day : Routine,2101,STUART TAYLOR INTERNATIONAL LTD,A0097341,31/08/2023,OPS0336190,371,N,,N,N
Pendle Borough Council,Housing & Environmental Health,Supplies and Services,Other Expenses,4705,GJ & MC LETTINGS,A0097353,17/08/2023,HEH0335913,1000,N,,N,N
Pendle Borough Council,Legal & Democratic Services,Supplies and Services,Mayoral Expenses,4614,REDACT - PERSONAL DATA,A0097382,03/08/2023,LAD0335398,72.84,N,,N,N
Pendle Borough Council,Legal & Democratic Services,Supplies and Services,Consultants Fees,4401,REDACT - PERSONAL DATA,A0097386,17/08/2023,LAD0335897,750,N,,N,N
Pendle Borough Council,Operational Services,Premises Related Expense,Bldgs : R & M : Day To Day,2001,E L PARKER LTD,A0097404,03/08/2023,OPS0335627,1400,N,,N,N
Pendle Borough Council,Operational Services,Premises Related Expense,Grounds : R & M : Day to Day : Routine,2101,E L PARKER LTD,A0097404,03/08/2023,OPS0335620,600,N,,N,N
Pendle Borough Council,Accountancy Control,Supplies and Services,Grant Funding,4737,REDACT - PERSONAL DATA,A0097408,03/08/2023,AAS0335686,350,N,,N,N
Pendle Borough Council,Accountancy Control,Supplies and Services,Grant Funding,4737,REDACT - PERSONAL DATA,A0097408,03/08/2023,AAS0335687,350,N,,N,N
Pendle Borough Council,Accountancy Control,Supplies and Services,Grant Funding,4737,REDACT - PERSONAL DATA,A0097408,03/08/2023,AAS0335688,350,N,,N,N
Pendle Borough Council,Finance,Supplies and Services,Seminars etc All Costs,4601,TET LIMITED t/a TRANS EUROPEAN TECHNOLOGY,A0097409,03/08/2023,FIN0335684,2310,N,,N,N
Pendle Borough Council,Legal & Democratic Services,Supplies and Services,Postages,4501,REDACT - PERSONAL DATA,A0097413,03/08/2023,LAD0335616,2.5,N,,N,N
Pendle Borough Council,Housing & Environmental Health,Supplies and Services,Other Expenses,4705,REDACT - PERSONAL DATA,A0097414,03/08/2023,HEH0335617,525,N,,N,N
Pendle Borough Council,Accountancy Control,Supplies and Services,Grant Funding,4737,REDACT - PERSONAL DATA,A0097415,03/08/2023,AAS0335704,500,N,,N,N
Pendle Borough Council,Accountancy Control,Supplies and Services,Grant Funding,4737,REDACT - PERSONAL DATA,A0097415,03/08/2023,AAS0335705,500,N,,N,N
Pendle Borough Council,Finance,Supplies and Services,Grant Funding,4737,REDACT - PERSONAL DATA,A0097416,03/08/2023,FIN0335680,200,N,,N,N
Pendle Borough Council,Housing & Environmental Health,Capital Costs,Ren Grant : 1996 Act,CH22,T&A DRIVEWAYS AND ROOFING NORTHWEST LTD,A0097417,10/08/2023,HEH0335642,16200,N,,N,N
Pendle Borough Council,Finance,Capital Costs,Capital: Construction: Conversion/Refu,CD57,READSTONE CONSTRUCTION,A0097418,03/08/2023,FIN0335709,51744.83,N,,N,N
Pendle Borough Council,Operational Services,,Fees Income : Non-VATable,9302,REDACT - PERSONAL DATA,A0097420,17/08/2023,OPS0335894,41,N,,N,N
Pendle Borough Council,Legal & Democratic Services,Supplies and Services,Other Expenses,4705,ASTRAEA LINSKILLS LTD,A0097422,10/08/2023,LAD0335832,22500,N,,N,N
Pendle Borough Council,Finance,Capital Costs,Capital : Legal Fees,CD09,LADBROOK INSURANCE,A0097424,10/08/2023,FIN0335833,280,N,,N,N
Pendle Borough Council,Finance,Supplies and Services,Grant Funding,4737,REDACT - PERSONAL DATA,A0097425,17/08/2023,FIN0335953,400,N,,N,N
Pendle Borough Council,Finance,Supplies and Services,Grant Funding,4737,REDACT - PERSONAL DATA,A0097426,17/08/2023,FIN0335954,400,N,,N,N
Pendle Borough Council,Legal & Democratic Services,Supplies and Services,Robes & Regalia,4203,MICHAELS CIVIC ROBES,A0097428,17/08/2023,LAD0335896,142,N,,N,N
Pendle Borough Council,Policy & Commissioning,Supplies and Services,Children`s holiday activities,4716,HARWES FARM CIC,A0097429,24/08/2023,POL0335979,1110,N,,N,N
Pendle Borough Council,Housing & Environmental Health,Supplies and Services,Other Expenses,4705,BLACK CAT PROPERTY AGENCY,A0097433,24/08/2023,HEH0336035,805,N,,N,N
Pendle Borough Council,Policy & Commissioning,Supplies and Services,Children`s holiday activities,4716,THE HIVE 55,A0097434,24/08/2023,POL0336082,3560,N,,N,N
Pendle Borough Council,Housing & Environmental Health,Supplies and Services,Other Expenses,4705,REDACT - PERSONAL DATA,A0097435,24/08/2023,HEH0336086,1150,N,,N,N
Pendle Borough Council,Finance,Supplies and Services,Other Expenses,4705,SHP GROUP LIMITED,A0097438,24/08/2023,FIN0336392,866.66,N,,N,N
Pendle Borough Council,Finance,Supplies and Services,Other Expenses,4705,SHP GROUP LIMITED,A0097438,24/08/2023,FIN0336392,1200,N,,N,N
